{"text_format":"3","workbook":"xlsx","n_sheets":5,"sheets":["Form","Form (translations)","Dropdown menus","Dropdown menus (translations)","Pictures"],"not_rendered":{"images":1,"defined_names":11,"comments":1},"read":"whole","date_system":"1900"}

{"sheet":"Form","index":0,"n_rows":60,"n_cols":25,"rows_kept":60,"merged":[[0,20,0,23],[1,20,1,23],[2,7,2,19],[2,20,2,23],[3,7,3,19],[6,4,6,10],[6,13,6,17],[8,6,8,12],[8,17,8,19],[10,7,10,12],[10,17,10,19],[12,6,12,20],[14,9,14,24],[16,6,16,10],[16,17,16,20],[19,11,19,24],[21,10,21,14],[21,23,21,24],[23,10,23,14],[23,23,23,24],[27,1,30,24],[33,1,34,16],[33,17,35,24],[36,1,39,24],[40,6,40,10],[41,1,42,24],[45,1,47,24],[48,7,48,10],[48,13,48,23],[51,1,52,24],[54,1,56,24],[54,25,56,25],[59,1,59,4],[60,1,80,25]]}
[1,{"$nulls":19},{"$f":"'Form (translations)'!A4","v":"Date"}]
[{"$nulls":20},{"$f":"'Form (translations)'!A6","v":"Reported By"}]
[{"$nulls":7},{"$f":"'Form (translations)'!A3","v":"Warranty Intervention Request"},{"$nulls":12},{"$f":"'Form (translations)'!A8","v":"Report Number"}]
[{"$nulls":20},{"$f":"Y59","v":"WIR 4700305 version 2013-01 xltx"}]
[null,{"$f":"'Form (translations)'!A10","v":"General Information"}]
[]
[null,{"$f":"'Form (translations)'!A11","v":"Product"},null,null,"-Select-",{"$nulls":7},{"$f":"'Form (translations)'!A12","v":"Model"},"-Select-",{"$nulls":9},{"$f":"'Form (translations)'!A13","v":"Machine Serial Number"}]
[]
[null,{"$f":"'Form (translations)'!A14","v":"Customer Name"},{"$nulls":14},{"$f":"'Form (translations)'!A24","v":"Delivery Date"},{"$nulls":6},{"$f":"'Form (translations)'!A16","v":"Working Hours"}]
[]
[null,{"$f":"'Form (translations)'!A15","v":"Contact Name"},{"$nulls":14},{"$f":"'Form (translations)'!A25","v":"Failure Date"},{"$nulls":6},{"$f":"'Form (translations)'!A17","v":"Phone Number"}]
[]
[null,{"$f":"'Form (translations)'!A19","v":"E-Mail"},{"$nulls":21},{"$f":"'Form (translations)'!A18","v":"Fax Number"}]
[]
[null,{"$f":"'Form (translations)'!A20","v":"Intervention Address"}]
[]
[null,{"$f":"'Form (translations)'!A21","v":"Location (City)"},{"$nulls":14},{"$f":"'Form (translations)'!A22","v":"Postal Code"},{"$nulls":6},{"$f":"'Form (translations)'!A23","v":"Country"}]
[]
[]
[null,{"$f":"'Form (translations)'!A29","v":"Product Information"}]
[]
[{"$nulls":9},{"$f":"'Form (translations)'!A30","v":"Component Manufacturer Name"},{"$nulls":12},{"$f":"'Form (translations)'!A26","v":"Component Description"}]
[]
[{"$nulls":9},{"$f":"'Form (translations)'!A31","v":"Component Model/Part Number"},{"$nulls":12},{"$f":"'Form (translations)'!A32","v":"Component Serial Number"}]
[]
[]
[null,{"$f":"'Form (translations)'!A33","v":"Description of the Problem:"},{"$nulls":22},{"$f":"'Form (translations)'!A34","v":"(Customer complaint / How was the problem noticed?)"}]
[]
[]
[]
[]
[]
[null,{"$f":"'Form (translations)'!A36","v":"Troubleshooting Performed:"},{"$nulls":22},{"$f":"'Form (translations)'!A37","v":"(Error Codes, Diagnostic Software Data download, Measurements, … )"}]
[null,{"$f":"'Form (translations)'!A38","v":"1- Measurements & Troubleshooting steps performed:"},{"$nulls":15},{"$f":"'Form (translations)'!A39","v":"VALUE: pressure, flow, cycle times, engine speed, voltage, current, frequency, power factor, ambient temp, humidity, ..."}]
[]
[]
[]
[]
[]
[]
[null,{"$f":"'Form (translations)'!A41","v":"2- Error Codes:"},{"$nulls":4},"-Select-",{"$nulls":10},{"$f":"'Form (translations)'!A42","v":"If YES, what is/are the codes displayed?"}]
[]
[]
[]
[null,{"$f":"'Form (translations)'!A44","v":"Warranty Intervention Request"},{"$nulls":22},{"$f":"'Form (translations)'!A45","v":"(For info only, request for investigation, ... Please specify)"}]
[]
[]
[]
[{"$nulls":6},{"$f":"'Form (translations)'!A47","v":"Date of request"},{"$nulls":5},{"$f":"'Form (translations)'!A48","v":"To"}]
[]
[]
[null,{"$f":"'Form (translations)'!A49","v":"REMARK: When sending the \"Warranty Intervention Request\" to the dealer of the component manufacturer, please make sure to always copy your local Doosan Service Manager."}]
[]
[]
[null,{"$f":"'Form (translations)'!A50","v":"NOTE: In case the failure investigation conclude the problem is not considered as being a warranty issue, the dealer / customer would be invoiced for the corresponding costs (investigation and repair) done by the dealer of the component manufacturer."}]
[]
[]
[]
[{"$nulls":24},"WIR 4700305 version 2013-01 xltx"]
[null,{"$f":"'Form (translations)'!A51","v":"REPLY"}]

{"sheet":"Form (translations)","index":1,"n_rows":51,"n_cols":8,"rows_kept":51,"hidden":true}
[{"$f":"Form!A1","v":1},"ENGLISH","ITALIAN","SPANISH","PORTUGUESE","FRENCH","GERMAN","DUTCH"]
[]
[{"$f":"IF($A$1=1,'Form (translations)'!$B3,IF($A$1=2,'Form (translations)'!$C3,IF($A$1=3,'Form (translations)'!$D3,IF($A$1=7,'Form (translations)'!$E3,IF($A$1=4,'Form (translations)'!$F3,IF($A$1=5,'Form (translations)'!$G3,IF($A$1=6,'Form (translations)'!$H3,0)))))))","v":"Warranty Intervention Request"},"Warranty Intervention Request","Richiesta di intervento in garanzia","Solicitud de intervención bajo garantía","Pedido de Intervenção ao Abrigo da Garantia","Demande d’intervention au titre de la garantie","Gewährleistungsforderung","Verzoek om garantietussenkomst"]
[{"$f":"IF($A$1=1,'Form (translations)'!$B4,IF($A$1=2,'Form (translations)'!$C4,IF($A$1=3,'Form (translations)'!$D4,IF($A$1=7,'Form (translations)'!$E4,IF($A$1=4,'Form (translations)'!$F4,IF($A$1=5,'Form (translations)'!$G4,IF($A$1=6,'Form (translations)'!$H4,0)))))))","v":"Date"},"Date","Data","Fecha","Data","Date","Datum","Datum"]
[{"$f":"IF($A$1=1,'Form (translations)'!$B5,IF($A$1=2,'Form (translations)'!$C5,IF($A$1=3,'Form (translations)'!$D5,IF($A$1=7,'Form (translations)'!$E5,IF($A$1=4,'Form (translations)'!$F5,IF($A$1=5,'Form (translations)'!$G5,IF($A$1=6,'Form (translations)'!$H5,0)))))))","v":"Please indicate the \"Report Date\" here"},"Please indicate the \"Report Date\" here","Inserire qui la \"data del rapporto\"","Indique aquí la \"Fecha del informe\"","P.f. Indique aqui a data do relatório","Veuillez indiquer ici la \"date du rapport\"","Bitte hier das „Berichtsdatum“ angeben","Typ hier de \"Rapportdatum\""]
[{"$f":"IF($A$1=1,'Form (translations)'!$B6,IF($A$1=2,'Form (translations)'!$C6,IF($A$1=3,'Form (translations)'!$D6,IF($A$1=7,'Form (translations)'!$E6,IF($A$1=4,'Form (translations)'!$F6,IF($A$1=5,'Form (translations)'!$G6,IF($A$1=6,'Form (translations)'!$H6,0)))))))","v":"Reported By"},"Reported By","Inviato da","Informe realizado por","Reportado por","Auteur","Erstellt von","Gerapporteerd door"]
[{"$f":"IF($A$1=1,'Form (translations)'!$B7,IF($A$1=2,'Form (translations)'!$C7,IF($A$1=3,'Form (translations)'!$D7,IF($A$1=7,'Form (translations)'!$E7,IF($A$1=4,'Form (translations)'!$F7,IF($A$1=5,'Form (translations)'!$G7,IF($A$1=6,'Form (translations)'!$H7,0)))))))","v":"Please indicate your full \"name\" here"},"Please indicate your full \"name\" here","Indicare qui in forma completa il \"nome\"","Indique aquí su \"Nombre\"","Indique aqui o \"Nome\"","Indiquez ici votre \"nom\" complet","Hier bitte Ihren vollständigen „Namen“ angeben","Typ hier uw volledige \"naam\""]
[{"$f":"IF($A$1=1,'Form (translations)'!$B8,IF($A$1=2,'Form (translations)'!$C8,IF($A$1=3,'Form (translations)'!$D8,IF($A$1=7,'Form (translations)'!$E8,IF($A$1=4,'Form (translations)'!$F8,IF($A$1=5,'Form (translations)'!$G8,IF($A$1=6,'Form (translations)'!$H8,0)))))))","v":"Report Number"},"Report Number","Rapporto numero","Número de informe","Nº de Relatório","Numéro du rapport","Berichtsnummer","Rapportnummer"]
[{"$f":"IF($A$1=1,'Form (translations)'!$B9,IF($A$1=2,'Form (translations)'!$C9,IF($A$1=3,'Form (translations)'!$D9,IF($A$1=7,'Form (translations)'!$E9,IF($A$1=4,'Form (translations)'!$F9,IF($A$1=5,'Form (translations)'!$G9,IF($A$1=6,'Form (translations)'!$H9,0)))))))","v":"Please indicate the \"Report Number\" here"},"Please indicate the \"Report Number\" here","Inserire qui il numero del rapporto","Indique aquí el \"Número de informe\"","Indique aqui o “Número do Relatório”","Veuillez indiquer ici le « numéro du rapport »","Bitte hier die „Berichtsnummer“ angeben ","Typ hier het \"Rapportnummer\""]
[{"$f":"IF($A$1=1,'Form (translations)'!$B10,IF($A$1=2,'Form (translations)'!$C10,IF($A$1=3,'Form (translations)'!$D10,IF($A$1=7,'Form (translations)'!$E10,IF($A$1=4,'Form (translations)'!$F10,IF($A$1=5,'Form (translations)'!$G10,IF($A$1=6,'Form (translations)'!$H10,0)))))))","v":"General Information"},"General Information","Informazioni Generali","Información General","Informação Geral","Informations Générales","Allgemeine Informationen","Algemene Informatie"]
[{"$f":"IF($A$1=1,'Form (translations)'!$B11,IF($A$1=2,'Form (translations)'!$C11,IF($A$1=3,'Form (translations)'!$D11,IF($A$1=7,'Form (translations)'!$E11,IF($A$1=4,'Form (translations)'!$F11,IF($A$1=5,'Form (translations)'!$G11,IF($A$1=6,'Form (translations)'!$H11,0)))))))","v":"Product"},"Product","Prodotto","Producto","Produto","Produit","Produkt","Product"]
[{"$f":"IF($A$1=1,'Form (translations)'!$B12,IF($A$1=2,'Form (translations)'!$C12,IF($A$1=3,'Form (translations)'!$D12,IF($A$1=7,'Form (translations)'!$E12,IF($A$1=4,'Form (translations)'!$F12,IF($A$1=5,'Form (translations)'!$G12,IF($A$1=6,'Form (translations)'!$H12,0)))))))","v":"Model"},"Model","Modello","Modelo","Modelo","Modèle","Modell","Model"]
[{"$f":"IF($A$1=1,'Form (translations)'!$B13,IF($A$1=2,'Form (translations)'!$C13,IF($A$1=3,'Form (translations)'!$D13,IF($A$1=7,'Form (translations)'!$E13,IF($A$1=4,'Form (translations)'!$F13,IF($A$1=5,'Form (translations)'!$G13,IF($A$1=6,'Form (translations)'!$H13,0)))))))","v":"Machine Serial Number"},"Machine Serial Number","Numero di serie della macchina","Número de serie de la máquina","Número de Série da Máquina","Numéro de série de la machine","Seriennummer der Maschine","Serienummer machine"]
[{"$f":"IF($A$1=1,'Form (translations)'!$B14,IF($A$1=2,'Form (translations)'!$C14,IF($A$1=3,'Form (translations)'!$D14,IF($A$1=7,'Form (translations)'!$E14,IF($A$1=4,'Form (translations)'!$F14,IF($A$1=5,'Form (translations)'!$G14,IF($A$1=6,'Form (translations)'!$H14,0)))))))","v":"Customer Name"},"Customer Name","Cliente","Cliente","Cliente","Nom du client","Kundenname","Naam klant"]
[{"$f":"IF($A$1=1,'Form (translations)'!$B15,IF($A$1=2,'Form (translations)'!$C15,IF($A$1=3,'Form (translations)'!$D15,IF($A$1=7,'Form (translations)'!$E15,IF($A$1=4,'Form (translations)'!$F15,IF($A$1=5,'Form (translations)'!$G15,IF($A$1=6,'Form (translations)'!$H15,0)))))))","v":"Contact Name"},"Contact Name","Nome del contatto","Nombre de contacto","Nome do Contacto","Nom du contact","Name der Kontaktperson","Naam contactpersoon"]
[{"$f":"IF($A$1=1,'Form (translations)'!$B16,IF($A$1=2,'Form (translations)'!$C16,IF($A$1=3,'Form (translations)'!$D16,IF($A$1=7,'Form (translations)'!$E16,IF($A$1=4,'Form (translations)'!$F16,IF($A$1=5,'Form (translations)'!$G16,IF($A$1=6,'Form (translations)'!$H16,0)))))))","v":"Working Hours"},"Working Hours","Ore di funzionamento","Horas de trabajo","Horas de trabalho","Heures de travail","Betriebsstunden","Bedrijfsuren"]
[{"$f":"IF($A$1=1,'Form (translations)'!$B17,IF($A$1=2,'Form (translations)'!$C17,IF($A$1=3,'Form (translations)'!$D17,IF($A$1=7,'Form (translations)'!$E17,IF($A$1=4,'Form (translations)'!$F17,IF($A$1=5,'Form (translations)'!$G17,IF($A$1=6,'Form (translations)'!$H17,0)))))))","v":"Phone Number"},"Phone Number","Numero di telefono","Número de teléfono","Número de Telefone","Numéro de téléphone","Telefon","Telefoonnummer"]
[{"$f":"IF($A$1=1,'Form (translations)'!$B18,IF($A$1=2,'Form (translations)'!$C18,IF($A$1=3,'Form (translations)'!$D18,IF($A$1=7,'Form (translations)'!$E18,IF($A$1=4,'Form (translations)'!$F18,IF($A$1=5,'Form (translations)'!$G18,IF($A$1=6,'Form (translations)'!$H18,0)))))))","v":"Fax Number"},"Fax Number","Numero di fax","Número de fax","Número de Fax","Numéro de fax","Fax","Faxnummer"]
[{"$f":"IF($A$1=1,'Form (translations)'!$B19,IF($A$1=2,'Form (translations)'!$C19,IF($A$1=3,'Form (translations)'!$D19,IF($A$1=7,'Form (translations)'!$E19,IF($A$1=4,'Form (translations)'!$F19,IF($A$1=5,'Form (translations)'!$G19,IF($A$1=6,'Form (translations)'!$H19,0)))))))","v":"E-Mail"},"E-Mail","E-mail","Correo electrónico","E-Mail","E-mail","E-Mail","E-mail"]
[{"$f":"IF($A$1=1,'Form (translations)'!$B20,IF($A$1=2,'Form (translations)'!$C20,IF($A$1=3,'Form (translations)'!$D20,IF($A$1=7,'Form (translations)'!$E20,IF($A$1=4,'Form (translations)'!$F20,IF($A$1=5,'Form (translations)'!$G20,IF($A$1=6,'Form (translations)'!$H20,0)))))))","v":"Intervention Address"},"Intervention Address","Indirizzo dell'intervento","Dirección de la intervención","Morada do Local de Intervenção","Adresse de l’intervention","Adresse der Interventionsstelle","Adres voor tussenkomst"]
[{"$f":"IF($A$1=1,'Form (translations)'!$B21,IF($A$1=2,'Form (translations)'!$C21,IF($A$1=3,'Form (translations)'!$D21,IF($A$1=7,'Form (translations)'!$E21,IF($A$1=4,'Form (translations)'!$F21,IF($A$1=5,'Form (translations)'!$G21,IF($A$1=6,'Form (translations)'!$H21,0)))))))","v":"Location (City)"},"Location (City)","Località (città)","Ubicación (Ciudad)","Localização","Lieu (ville)","Ort (Stadt)","Locatie (stad)"]
[{"$f":"IF($A$1=1,'Form (translations)'!$B22,IF($A$1=2,'Form (translations)'!$C22,IF($A$1=3,'Form (translations)'!$D22,IF($A$1=7,'Form (translations)'!$E22,IF($A$1=4,'Form (translations)'!$F22,IF($A$1=5,'Form (translations)'!$G22,IF($A$1=6,'Form (translations)'!$H22,0)))))))","v":"Postal Code"},"Postal Code","Codice postale (CAP)","Código postal","Código Postal","Code postal","Postleitzahl","Postcode"]
[{"$f":"IF($A$1=1,'Form (translations)'!$B23,IF($A$1=2,'Form (translations)'!$C23,IF($A$1=3,'Form (translations)'!$D23,IF($A$1=7,'Form (translations)'!$E23,IF($A$1=4,'Form (translations)'!$F23,IF($A$1=5,'Form (translations)'!$G23,IF($A$1=6,'Form (translations)'!$H23,0)))))))","v":"Country"},"Country","Paese","País","País","Pays","Land","Land"]
[{"$f":"IF($A$1=1,'Form (translations)'!$B24,IF($A$1=2,'Form (translations)'!$C24,IF($A$1=3,'Form (translations)'!$D24,IF($A$1=7,'Form (translations)'!$E24,IF($A$1=4,'Form (translations)'!$F24,IF($A$1=5,'Form (translations)'!$G24,IF($A$1=6,'Form (translations)'!$H24,0)))))))","v":"Delivery Date"},"Delivery Date","Data di consegna","Fecha de entrega","Data de venda","Date de livraison","Lieferdatum","Leveringsdatum"]
[{"$f":"IF($A$1=1,'Form (translations)'!$B25,IF($A$1=2,'Form (translations)'!$C25,IF($A$1=3,'Form (translations)'!$D25,IF($A$1=7,'Form (translations)'!$E25,IF($A$1=4,'Form (translations)'!$F25,IF($A$1=5,'Form (translations)'!$G25,IF($A$1=6,'Form (translations)'!$H25,0)))))))","v":"Failure Date"},"Failure Date","Data del guasto","Fecha de fallo","Data da avaria","Date de défaillance","Datum des Defekts","Datum storing"]
[{"$f":"IF($A$1=1,'Form (translations)'!$B26,IF($A$1=2,'Form (translations)'!$C26,IF($A$1=3,'Form (translations)'!$D26,IF($A$1=7,'Form (translations)'!$E26,IF($A$1=4,'Form (translations)'!$F26,IF($A$1=5,'Form (translations)'!$G26,IF($A$1=6,'Form (translations)'!$H26,0)))))))","v":"Component Description"},"Component Description","Descrizione del componente","Descripción del componente","Descrição do Componente","Description du composant","Beschreibung der Komponente","Beschrijving onderdeel"]
[{"$f":"IF($A$1=1,'Form (translations)'!$B27,IF($A$1=2,'Form (translations)'!$C27,IF($A$1=3,'Form (translations)'!$D27,IF($A$1=7,'Form (translations)'!$E27,IF($A$1=4,'Form (translations)'!$F27,IF($A$1=5,'Form (translations)'!$G27,IF($A$1=6,'Form (translations)'!$H27,0)))))))","v":"Part Number"},"Part Number","Codice articolo","Número referencia","Ref. ª de Peça","Référence composant","Artikelnummer","Onderdeelnummer"]
[{"$f":"IF($A$1=1,'Form (translations)'!$B28,IF($A$1=2,'Form (translations)'!$C28,IF($A$1=3,'Form (translations)'!$D28,IF($A$1=7,'Form (translations)'!$E28,IF($A$1=4,'Form (translations)'!$F28,IF($A$1=5,'Form (translations)'!$G28,IF($A$1=6,'Form (translations)'!$H28,0)))))))","v":"If the \"Part Number\" is a part of a serialized component, please provide the \"Serial Number\". The component is as for example: engine, transmission, axle, pump, control valve, drive motor, slew motor, starter, alternator, controller, ..."},"If the \"Part Number\" is a part of a serialized component, please provide the \"Serial Number\". The component is as for example: engine, transmission, axle, pump, control valve, drive motor, slew motor, starter, alternator, controller, ...","Se il \"codice articolo\" è un elemento che fa parte di un componente dotato di numero di serie, indicare il \"numero di serie\". Esempi di componenti sono: motore, trasmissione, assale, pompa, valvola principale, motore di rotazione, starter, alternatore, controller...","Si el \"Número de referencia\" es un componente serializado, indique el \"Número de serie\". El componente, por ejemplo: motor, transmisión, eje, bomba, distribuidor, motor de transmisión, motor de giro, motor de arranque, alternador, controlador, ...","Se a Ref, ª de Peça é de um componente com Nº de Série, p.f. Indique-o. Ex.; Motor, Transmissão, Eixo, Bomba, distribuidor, Motor de Andamento, Motor de Giro, Motor de Arranque, Alternador, ECU, ...","Si la \"référence\" appartient à un composant fabriqué en série, veuillez indiquer le \"numéro de série\". Il peut s'agir d'un composant du type : moteur, transmission, essieu, pompe, distributeur, moteur de rotation, moteur d'orientation, démarreur, alternateur, unité de contrôle, ...","Wenn die „Artikelnummer“ ein Teil einer Komponente mit Seriennummer ist, bitte die „Seriennummer“ angeben. Beispiel für eine Komponente: Motor, Getriebe, Achse, Pumpe, Steuerventil, Antriebsmotor, Schwenkmotor, Anlasser, Steuereinheit usw.","Als het \"Onderdeelnummer\" verwijst naar een in onderdeel met serienummer, geef dan het \"Serienummer\" op. Het onderdeel kan bijvoorbeeld zijn: motor, transmissie, as, pomp, verdeelblok, rijmotor, zwenkmotor, startmotor, dynamo, controller, ..."]
[{"$f":"IF($A$1=1,'Form (translations)'!$B29,IF($A$1=2,'Form (translations)'!$C29,IF($A$1=3,'Form (translations)'!$D29,IF($A$1=7,'Form (translations)'!$E29,IF($A$1=4,'Form (translations)'!$F29,IF($A$1=5,'Form (translations)'!$G29,IF($A$1=6,'Form (translations)'!$H29,0)))))))","v":"Product Information"},"Product Information","Informazioni sul Prodotto","Información de Producto","Informação da Máquina","Informations sur le Produit","Produktinformationen","Productinformatie"]
[{"$f":"IF($A$1=1,'Form (translations)'!$B30,IF($A$1=2,'Form (translations)'!$C30,IF($A$1=3,'Form (translations)'!$D30,IF($A$1=7,'Form (translations)'!$E30,IF($A$1=4,'Form (translations)'!$F30,IF($A$1=5,'Form (translations)'!$G30,IF($A$1=6,'Form (translations)'!$H30,0)))))))","v":"Component Manufacturer Name"},"Component Manufacturer Name","Nome del produttore del componente","Nombre del fabricante del componente","Nome do Fabricante do Componente","Nom du fabricant du composant","Name des Komponentenherstellers","Naam fabrikant onderdeel"]
[{"$f":"IF($A$1=1,'Form (translations)'!$B31,IF($A$1=2,'Form (translations)'!$C31,IF($A$1=3,'Form (translations)'!$D31,IF($A$1=7,'Form (translations)'!$E31,IF($A$1=4,'Form (translations)'!$F31,IF($A$1=5,'Form (translations)'!$G31,IF($A$1=6,'Form (translations)'!$H31,0)))))))","v":"Component Model/Part Number"},"Component Model/Part Number","Modello/Codice del componente","Modelo/referencia del componente","Modelo/Número de Ref. do Componente","Modèle/référence du composant","Modell-/Teile-Nummer der Komponente","Model/onderdeelnummer onderdeel"]
[{"$f":"IF($A$1=1,'Form (translations)'!$B32,IF($A$1=2,'Form (translations)'!$C32,IF($A$1=3,'Form (translations)'!$D32,IF($A$1=7,'Form (translations)'!$E32,IF($A$1=4,'Form (translations)'!$F32,IF($A$1=5,'Form (translations)'!$G32,IF($A$1=6,'Form (translations)'!$H32,0)))))))","v":"Component Serial Number"},"Component Serial Number","Numero di serie del componente","Número de serie del componente","Número de Série do Componente","Numéro de série du composant","Seriennummer der Komponente","Serienummer onderdeel"]
[{"$f":"IF($A$1=1,'Form (translations)'!$B33,IF($A$1=2,'Form (translations)'!$C33,IF($A$1=3,'Form (translations)'!$D33,IF($A$1=7,'Form (translations)'!$E33,IF($A$1=4,'Form (translations)'!$F33,IF($A$1=5,'Form (translations)'!$G33,IF($A$1=6,'Form (translations)'!$H33,0)))))))","v":"Description of the Problem:"},"Description of the Problem:","Descrizione del Problema:","Descripción del Problema:","Descrição do Problema:","Description du Problème:","Beschreibung des Problems:","Beschrijving van het Probleem:"]
[{"$f":"IF($A$1=1,'Form (translations)'!$B34,IF($A$1=2,'Form (translations)'!$C34,IF($A$1=3,'Form (translations)'!$D34,IF($A$1=7,'Form (translations)'!$E34,IF($A$1=4,'Form (translations)'!$F34,IF($A$1=5,'Form (translations)'!$G34,IF($A$1=6,'Form (translations)'!$H34,0)))))))","v":"(Customer complaint / How was the problem noticed?)"},"(Customer complaint / How was the problem noticed?)","(Reclamo del cliente / In che modo il problema si è manifestato?)","(Queja del cliente/¿Cómo se observó el problema?)","(Queixa do cliente / Como observou o problema?)","(Réclamation du client / comment le problème a-t-il été remarqué ?)","(Beanstandung des Kunden / Wie machte sich das Problem bemerkbar?)","(Klacht klant / Hoe is het probleem opgemerkt?)"]
[{"$f":"IF($A$1=1,'Form (translations)'!$B35,IF($A$1=2,'Form (translations)'!$C35,IF($A$1=3,'Form (translations)'!$D35,IF($A$1=7,'Form (translations)'!$E35,IF($A$1=4,'Form (translations)'!$F35,IF($A$1=5,'Form (translations)'!$G35,IF($A$1=6,'Form (translations)'!$H35,0)))))))","v":"Insert text here"},"Insert text here","Inserire qui il testo","Inserte texto aquí","Inserir o seu texto aqui","Insérez votre texte ici","Hier Text einfügen","Hier tekst invoegen"]
[{"$f":"IF($A$1=1,'Form (translations)'!$B36,IF($A$1=2,'Form (translations)'!$C36,IF($A$1=3,'Form (translations)'!$D36,IF($A$1=7,'Form (translations)'!$E36,IF($A$1=4,'Form (translations)'!$F36,IF($A$1=5,'Form (translations)'!$G36,IF($A$1=6,'Form (translations)'!$H36,0)))))))","v":"Troubleshooting Performed:"},"Troubleshooting Performed:","Procedura di Ricerca Guasti Seguita:","Localización de Averías Realizada:","Diagnóstico realizado:","Recherche d'Incident Effectuée:","Durchgeführte Störungssuche:","Uitgevoerde Probleemoplossing:"]
[{"$f":"IF($A$1=1,'Form (translations)'!$B37,IF($A$1=2,'Form (translations)'!$C37,IF($A$1=3,'Form (translations)'!$D37,IF($A$1=7,'Form (translations)'!$E37,IF($A$1=4,'Form (translations)'!$F37,IF($A$1=5,'Form (translations)'!$G37,IF($A$1=6,'Form (translations)'!$H37,0)))))))","v":"(Error Codes, Diagnostic Software Data download, Measurements, … )"},"(Error Codes, Diagnostic Software Data download, Measurements, … )","(Codici errore, download dati dal software diagnostico, misurazioni, ...)","(Códigos de error, descarga de software de diagnóstico, mediciones, ...)","(Códigos de erro; download de software de diagnóstico, medições efectuadas, ...)","(Codes défaut, téléchargement des données du logiciel de diagnostic, mesures, ...)","(Fehlercodes, Download von Diagnose-Softwaredaten, Messungen usw.)","(Foutcodes, Downloaden diagnostische softwaregegevens, Afmetingen, … )"]
[{"$f":"IF($A$1=1,'Form (translations)'!$B38,IF($A$1=2,'Form (translations)'!$C38,IF($A$1=3,'Form (translations)'!$D38,IF($A$1=7,'Form (translations)'!$E38,IF($A$1=4,'Form (translations)'!$F38,IF($A$1=5,'Form (translations)'!$G38,IF($A$1=6,'Form (translations)'!$H38,0)))))))","v":"1- Measurements & Troubleshooting steps performed:"},"1- Measurements & Troubleshooting steps performed:","1- Passaggi completati della procedura di misurazione e ricerca guasti:","1- Mediciones y pasos realizados para localización de averías:","1 – Medições e passos realizados para localização de avarias:","1- Mesures et étapes de recherche d'incident mises en œuvre :","1- Durchgeführte Messungen und Schritte zur Störungssuche:","1- Afmetingen en uitgevoerde stappen probleemoplossing:"]
[{"$f":"IF($A$1=1,'Form (translations)'!$B39,IF($A$1=2,'Form (translations)'!$C39,IF($A$1=3,'Form (translations)'!$D39,IF($A$1=7,'Form (translations)'!$E39,IF($A$1=4,'Form (translations)'!$F39,IF($A$1=5,'Form (translations)'!$G39,IF($A$1=6,'Form (translations)'!$H39,0)))))))","v":"VALUE: pressure, flow, cycle times, engine speed, voltage, current, frequency, power factor, ambient temp, humidity, ..."},"VALUE: pressure, flow, cycle times, engine speed, voltage, current, frequency, power factor, ambient temp, humidity, ...","VALORE: pressione, portata, tempi di ciclo, regime motore, voltaggio, corrente, frequenza, fattore di potenza, temperatura ambientale, umidità...","VALOR: presión, caudal, ciclos, velocidad del motor, tensión, corriente, frecuencia, factor de potencia, temperatura ambiente, humedad...","VALORES DE: Pressões, Caudais, Velocidade do Motor, Tensão e Intensidade eléctrica, Frequência, Factor de Potência, Temperatura, Humidade...","VALEUR : pression, débit, temps de cycle, régime moteur, voltage, ampèrage, fréquence, facteur de puissance, température ambiante, humidité, ...","WERT: Druck, Durchfluss, Taktzeiten, Motordrehzahl, Spannung, Stromstärke, Frequenz, Leistungsfaktor, Umgebungstemperatur, Luftfeuchtigkeit usw.","WAARDE:  druk, debiet, cyclustijden, motorsnelheid, spanning, stroomsterkte, frequentie, arbeidsfactor, omgevingstemperatuur, vochtigheid, ..."]
[{"$f":"IF($A$1=1,'Form (translations)'!$B40,IF($A$1=2,'Form (translations)'!$C40,IF($A$1=3,'Form (translations)'!$D40,IF($A$1=7,'Form (translations)'!$E40,IF($A$1=4,'Form (translations)'!$F40,IF($A$1=5,'Form (translations)'!$G40,IF($A$1=6,'Form (translations)'!$H40,0)))))))","v":"Insert text here"},{"$f":"B35","v":"Insert text here"},{"$f":"C35","v":"Inserire qui il testo"},"Inserte texto aquí",{"$f":"E35","v":"Inserir o seu texto aqui"},"Insérez votre texte ici","Hier Text einfügen","Hier tekst invoegen"]
[{"$f":"IF($A$1=1,'Form (translations)'!$B41,IF($A$1=2,'Form (translations)'!$C41,IF($A$1=3,'Form (translations)'!$D41,IF($A$1=7,'Form (translations)'!$E41,IF($A$1=4,'Form (translations)'!$F41,IF($A$1=5,'Form (translations)'!$G41,IF($A$1=6,'Form (translations)'!$H41,0)))))))","v":"2- Error Codes:"},"2- Error Codes:","2- Codici errore:","2- Códigos de error:","2- Códigos de erro:","2- Codes d'érreur :","2- Fehlercodes:","2- Foutcodes:"]
[{"$f":"IF($A$1=1,'Form (translations)'!$B42,IF($A$1=2,'Form (translations)'!$C42,IF($A$1=3,'Form (translations)'!$D42,IF($A$1=7,'Form (translations)'!$E42,IF($A$1=4,'Form (translations)'!$F42,IF($A$1=5,'Form (translations)'!$G42,IF($A$1=6,'Form (translations)'!$H42,0)))))))","v":"If YES, what is/are the codes displayed?"},"If YES, what is/are the codes displayed?","Se SÌ, quali sono i codici visualizzati?","Si es que SÍ, ¿cuál es o son los códigos que aparecen?","Se SIM, quais os códigos activos?","Si OUI, quels sont les codes qui s'affichent?","Wenn JA, welcher Codes werden angezeigt?","Zo JA, welke codes worden afgebeeld?"]
[{"$f":"IF($A$1=1,'Form (translations)'!$B43,IF($A$1=2,'Form (translations)'!$C43,IF($A$1=3,'Form (translations)'!$D43,IF($A$1=7,'Form (translations)'!$E43,IF($A$1=4,'Form (translations)'!$F43,IF($A$1=5,'Form (translations)'!$G43,IF($A$1=6,'Form (translations)'!$H43,0)))))))","v":"Insert text here"},{"$f":"B35","v":"Insert text here"},"Inserire qui il testo","Inserte texto aquí",{"$f":"E35","v":"Inserir o seu texto aqui"},"Insérez votre texte ici","Hier Text einfügen","Hier tekst invoegen"]
[{"$f":"IF($A$1=1,'Form (translations)'!$B44,IF($A$1=2,'Form (translations)'!$C44,IF($A$1=3,'Form (translations)'!$D44,IF($A$1=7,'Form (translations)'!$E44,IF($A$1=4,'Form (translations)'!$F44,IF($A$1=5,'Form (translations)'!$G44,IF($A$1=6,'Form (translations)'!$H44,0)))))))","v":"Warranty Intervention Request"},{"$f":"B3","v":"Warranty Intervention Request"},"Richiesta di intervento in garanzia","Solicitud de intervención bajo garantía","Pedido de Intervenção ao Abrigo da Garantia","Demande d’intervention au titre de la garantie","Gewährleistungsforderung","Verzoek om garantietussenkomst"]
[{"$f":"IF($A$1=1,'Form (translations)'!$B45,IF($A$1=2,'Form (translations)'!$C45,IF($A$1=3,'Form (translations)'!$D45,IF($A$1=7,'Form (translations)'!$E45,IF($A$1=4,'Form (translations)'!$F45,IF($A$1=5,'Form (translations)'!$G45,IF($A$1=6,'Form (translations)'!$H45,0)))))))","v":"(For info only, request for investigation, ... Please specify)"},"(For info only, request for investigation, ... Please specify)","(a solo titolo informativo, richiesta di accertamento, ... si prega di specificare)","(Solo información, solicitud de investigación, ... Especifique)","(Apenas para informação, Pedido de Investigação, … (p.f. Especificar)","(pour info uniquement, demande d'investigation, ... Veuillez préciser)","(Nur zur Information, Überprüfungsanfrage, ... Bitte erläutern)","(Slechts ter informatie, opdracht tot onderzoek, ... Licht toe)"]
[{"$f":"IF($A$1=1,'Form (translations)'!$B46,IF($A$1=2,'Form (translations)'!$C46,IF($A$1=3,'Form (translations)'!$D46,IF($A$1=7,'Form (translations)'!$E46,IF($A$1=4,'Form (translations)'!$F46,IF($A$1=5,'Form (translations)'!$G46,IF($A$1=6,'Form (translations)'!$H46,0)))))))","v":"Insert text here"},{"$f":"B35","v":"Insert text here"},"Inserire qui il testo","Inserte texto aquí",{"$f":"E35","v":"Inserir o seu texto aqui"},"Insérez votre texte ici","Hier Text einfügen","Hier tekst invoegen"]
[{"$f":"IF($A$1=1,'Form (translations)'!$B47,IF($A$1=2,'Form (translations)'!$C47,IF($A$1=3,'Form (translations)'!$D47,IF($A$1=7,'Form (translations)'!$E47,IF($A$1=4,'Form (translations)'!$F47,IF($A$1=5,'Form (translations)'!$G47,IF($A$1=6,'Form (translations)'!$H47,0)))))))","v":"Date of request"},"Date of request","Data della richiesta","Fecha de solicitud","Data do pedido","Date de la demande","Datum der Forderung","Datum van verzoek"]
[{"$f":"IF($A$1=1,'Form (translations)'!$B48,IF($A$1=2,'Form (translations)'!$C48,IF($A$1=3,'Form (translations)'!$D48,IF($A$1=7,'Form (translations)'!$E48,IF($A$1=4,'Form (translations)'!$F48,IF($A$1=5,'Form (translations)'!$G48,IF($A$1=6,'Form (translations)'!$H48,0)))))))","v":"To"},"To","A","A","A","À","An","Naar"]
[{"$f":"IF($A$1=1,'Form (translations)'!$B49,IF($A$1=2,'Form (translations)'!$C49,IF($A$1=3,'Form (translations)'!$D49,IF($A$1=7,'Form (translations)'!$E49,IF($A$1=4,'Form (translations)'!$F49,IF($A$1=5,'Form (translations)'!$G49,IF($A$1=6,'Form (translations)'!$H49,0)))))))","v":"REMARK: When sending the \"Warranty Intervention Request\" to the dealer of the component manufacturer, please make sure to always copy your local Doosan Service Manager."},"REMARK: When sending the \"Warranty Intervention Request\" to the dealer of the component manufacturer, please make sure to always copy your local Doosan Service Manager.","NOTA: quando si invia la \"Richiesta di intervento in garanzia\" al distributore del produttore del componente, inviare sempre una copia al Responsabile dell'assistenza Doosan di zona (Doosan Service Manager).","NOTA: Cuando envíe la \"Solicitud de intervención bajo garantía\" al distribuidor del fabricante del componente, asegúrese de siempre incluir a su Director de servicio Doosan local en el mensaje (Doosan Service Manager).","OBSERVAÇÃO: Quando enviar o \"Pedido de Intervenção ao Abrigo da Garantia\" ao distribuidor do fabricante do componente, certifique-se sempre de enviar uma cópia ao Director de Assistência Doosan local (Doosan Service Manager).","REMARQUE : lors de l’envoi de la « Demande d’intervention au titre de la garantie » au distributeur du fabricant du composant, veillez à toujours envoyer une copie au responsable local des services Doosan (Doosan Service Manager).","ANMERKUNG: Bitte schicken Sie auch eine Kopie an Ihren Service Manager von Doosan vor Ort (Doosan Service Manager), wenn Sie die Gewährleistungsforderung an den Händler des Komponentenherstellers senden.","OPMERKING: Wanneer u het \"Verzoek om garantietussenkomst\" verstuurt naar de dealer of de fabrikant van het onderdeel, zorgt u ervoor dat u altijd uw plaatselijke Doosan Service Manager kopieert."]
[{"$f":"IF($A$1=1,'Form (translations)'!$B50,IF($A$1=2,'Form (translations)'!$C50,IF($A$1=3,'Form (translations)'!$D50,IF($A$1=7,'Form (translations)'!$E50,IF($A$1=4,'Form (translations)'!$F50,IF($A$1=5,'Form (translations)'!$G50,IF($A$1=6,'Form (translations)'!$H50,0)))))))","v":"NOTE: In case the failure investigation conclude the problem is not considered as being a warranty issue, the dealer / customer would be invoiced for the corresponding costs (investigation and repair) done by the dealer of the component manufacturer."},"NOTE: In case the failure investigation conclude the problem is not considered as being a warranty issue, the dealer / customer would be invoiced for the corresponding costs (investigation and repair) done by the dealer of the component manufacturer.","NOTA: se dall'ispezione relativa al guasto risulta che il problema non è coperto dalla garanzia, al concessionario/cliente verranno fatturate le spese corrispondenti (ispezione e riparazione) sostenute dal distributore del produttore del componente.","NOTA: Si tras la investigación del fallo se llega a la conclusión de que el problema no se considera cubierto por la garantía, se facturarán al distribuidor/cliente los costes correspondientes (investigación y reparación) en los que haya incurrido el distribuidor del fabricante del componente.","NOTA: Se a investigação da falha concluir que o problema não se considera uma questão abrangida pela garantia, o distribuidor / cliente receberá a factura correspondente aos respectivos custos (investigação e reparação) expedida pelo distribuidor do fabricante do componente.","REMARQUE : si l’enquête concernant la panne conclut que le problème n’est pas couvert par la garantie, le concessionnaire / client est facturé les frais correspondants (enquête et réparation) par le distributeur du fabricant du composant.","HINWEIS: Falls die Untersuchung des Fehlers ergibt, dass bei dem Problem kein Gewährleistungsanspruch besteht, werden dem Händler/Kunden die entsprechenden Kosten für die angefallenen Arbeiten (Untersuchung und Reparatur), die der Händler des Komponentenherstellers durchgeführt hat, in Rechnung gestellt.","NB: In geval het onderzoek vaststelt dat het probleem niet wordt beschouwd als een garantiekwestie, wordt de dealer / klant gefactureerd voor de overeenkomstige kosten (onderzoek en reparatie) opgelopen door de dealer of de fabrikant van het onderdeel."]
[{"$f":"IF($A$1=1,'Form (translations)'!$B51,IF($A$1=2,'Form (translations)'!$C51,IF($A$1=3,'Form (translations)'!$D51,IF($A$1=7,'Form (translations)'!$E51,IF($A$1=4,'Form (translations)'!$F51,IF($A$1=5,'Form (translations)'!$G51,IF($A$1=6,'Form (translations)'!$H51,0)))))))","v":"REPLY"},"REPLY","RISPOSTA","RESPUESTA","RESPOSTA","REPONSE","ANTWORT","ANTWOORD"]

{"sheet":"Dropdown menus","index":2,"n_rows":83,"n_cols":46,"rows_kept":83,"hidden":true}
[null,"Product",{"$f":"Form!E7","v":"-Select-"},"Model HEX","Model WEX","Model WL","Model ADT","Model DTH","Model LDR","Model MT","Model BAL","Model UV","Model WM","Model MEX","Model TLS","Model ATT","Model COMP","Model TOOLS","Model GEN","Model LC","Model LT",{"$f":"Form!#REF!","v":{"$error":"#REF!"}},"Attachment (HEAVY + COMPACT)","Attachment COMP",{"$f":"Form!#REF!","v":{"$error":"#REF!"}},"Options (HEX/WEX)","Options (COMP)","Options (GEN/LT)",{"$f":"Form!#REF!","v":{"$error":"#REF!"}},"Application (HEAVY + COMPACT)","Application COMP","Application TOOLS/LC","Application GEN",{"$f":"Form!#REF!","v":{"$error":"#REF!"}},"Work type (HEAVY + COMPACT)","Work type COMP","Work type GEN",{"$f":"Form!#REF!","v":{"$error":"#REF!"}},"Material (HEAVY + COMPACT)","Severity","Warranty","Type of Problem","Error Codes","Diagnostic Software Report File","Symptom code","Symptom code COMP"]
[null,"-Select-",{"$f":"IF($C$1=$B$2,$D$2,IF($C$1=$B$3,$D2,IF($C$1=$B$4,$E2,IF($C$1=$B$5,$F2,IF($C$1=$B$6,$G2,IF($C$1=$B$7,$H2,IF($C$1=$B$8,$I2,IF($C$1=$B$9,$J2,IF($C$1=$B$10,$K2,IF($C$1=$B$11,$L2,IF($C$1=$B$12,$M2,IF($C$1=$B$13,$N2,IF($C$1=$B$14,$O2,IF($C$1=$B$15,$P2,IF($C$1=$B$16,$Q2,IF($C$1=$B$17,$R2,IF($C$1=$B$18,$S2,IF($C$1=$B$19,$T2,IF($C$1=$B$20,$U2,IF($C$1=$B$21,$B$21,\"\"))))))))))))))))))))","v":"-Select-"},"-Select-","-Select-","-Select-","-Select-","-Select-","-Select-","-Select-","-Select-","-Select-","-Select-","-Select-","-Select-","-Select-","-Select-","-Select-","-Select-","-Select-","-Select-",{"$f":"IF($C$1=$B$2,$W$2,IF(OR($C$1=$B$3,$C$1=$B$4,$C$1=$B$5,$C$1=$B$6,$C$1=$B$7,$C$1=$B$8,$C$1=$B$9,$C$1=$B$10,$C$1=$B$11,$C$1=$B$12,$C$1=$B$13,$C$1=$B$14),$W2,IF($C$1=$B$16,$X2,\"\")))","v":"-Select-"},"-Select-","-Select-",{"$f":"IF($C$1=$B$2,$Z$2,IF(OR($C$1=$B$3,$C$1=$B$4),$Z2,IF($C$1=$B$16,$AA2,IF(OR($C$1=$B$18,$C$1=$B$20),$AB2,\"\"))))","v":"-Select-"},"-Select-","-Select-","-Select-",{"$f":"IF($C$1=$B$2,$AD$2,IF(OR($C$1=$B$3,$C$1=$B$4,$C$1=$B$5,$C$1=$B$6,$C$1=$B$7,$C$1=$B$8,$C$1=$B$9,$C$1=$B$10,$C$1=$B$11,$C$1=$B$12,$C$1=$B$13,$C$1=$B$14,$C$1=$B$15),$AD2,IF(OR($C$1=$B$16),$AE2,IF(OR($C$1=$B$17,$C$1=$B$19),$AF2,IF(OR($C$1=$B$18,$C$1=$B$20),$AG2,\"\")))))","v":"-Select-"},"-Select-","-Select-","-Select-","-Select-",{"$f":"IF($C$1=$B$2,$AI$2,IF(OR($C$1=$B$3,$C$1=$B$4,$C$1=$B$5,$C$1=$B$6,$C$1=$B$7,$C$1=$B$8,$C$1=$B$9,$C$1=$B$10,$C$1=$B$11,$C$1=$B$12,$C$1=$B$13,$C$1=$B$14,$C$1=$B$15),$AI2,IF(OR($C$1=$B$16),$AJ2,IF(OR($C$1=$B$18,$C$1=$B$20),$AK2,\"\"))))","v":"-Select-"},"-Select-","-Select-","-Select-",{"$f":"IF($C$1=$B$2,$AM$2,IF(OR($C$1=$B$3,$C$1=$B$4,$C$1=$B$5,$C$1=$B$6,$C$1=$B$7,$C$1=$B$8,$C$1=$B$9,$C$1=$B$10,$C$1=$B$11,$C$1=$B$12,$C$1=$B$13,$C$1=$B$14,$C$1=$B$15),$AM2,\"\"))","v":"-Select-"},"-Select-","-Select-","-Select-","-Select-","-Select-","-Select-","-Select-","-Select-"]
[null,"Heavy Excavator HEX",{"$f":"IF($C$1=$B$2,$D$2,IF($C$1=$B$3,$D3,IF($C$1=$B$4,$E3,IF($C$1=$B$5,$F3,IF($C$1=$B$6,$G3,IF($C$1=$B$7,$H3,IF($C$1=$B$8,$I3,IF($C$1=$B$9,$J3,IF($C$1=$B$10,$K3,IF($C$1=$B$11,$L3,IF($C$1=$B$12,$M3,IF($C$1=$B$13,$N3,IF($C$1=$B$14,$O3,IF($C$1=$B$15,$P3,IF($C$1=$B$16,$Q3,IF($C$1=$B$17,$R3,IF($C$1=$B$18,$S3,IF($C$1=$B$19,$T3,IF($C$1=$B$20,$U3,IF($C$1=$B$21,$B$21,\"\"))))))))))))))))))))","v":"-Select-"},"DX140LC","DX140W","DL160","MT25","DT70","A300","MT52","AL275",2200,5600,325,"T2250","Angle Broom","10/105","IR10PV","G10","BX-120WH","BL1200HMI",{"$f":"IF($C$1=$B$2,$W$2,IF(OR($C$1=$B$3,$C$1=$B$4,$C$1=$B$5,$C$1=$B$6,$C$1=$B$7,$C$1=$B$8,$C$1=$B$9,$C$1=$B$10,$C$1=$B$11,$C$1=$B$12,$C$1=$B$13,$C$1=$B$14),$W3,IF($C$1=$B$16,$X3,\"\")))","v":"-Select-"},"Breaker","Aftercooler",{"$f":"IF($C$1=$B$2,$Z$2,IF(OR($C$1=$B$3,$C$1=$B$4),$Z3,IF($C$1=$B$16,$AA3,IF(OR($C$1=$B$18,$C$1=$B$20),$AB3,\"\"))))","v":"-Select-"},"Cabin Riser","Aftercooler","3 way Fuel Valve",{"$f":"IF($C$1=$B$2,$AD$2,IF(OR($C$1=$B$3,$C$1=$B$4,$C$1=$B$5,$C$1=$B$6,$C$1=$B$7,$C$1=$B$8,$C$1=$B$9,$C$1=$B$10,$C$1=$B$11,$C$1=$B$12,$C$1=$B$13,$C$1=$B$14,$C$1=$B$15),$AD3,IF(OR($C$1=$B$16),$AE3,IF(OR($C$1=$B$17,$C$1=$B$19),$AF3,IF(OR($C$1=$B$18,$C$1=$B$20),$AG3,\"\")))))","v":"-Select-"},"Agricultural","Auto-Start","Building Construction","Construction",{"$f":"IF($C$1=$B$2,$AI$2,IF(OR($C$1=$B$3,$C$1=$B$4,$C$1=$B$5,$C$1=$B$6,$C$1=$B$7,$C$1=$B$8,$C$1=$B$9,$C$1=$B$10,$C$1=$B$11,$C$1=$B$12,$C$1=$B$13,$C$1=$B$14,$C$1=$B$15),$AI3,IF(OR($C$1=$B$16),$AJ3,IF(OR($C$1=$B$18,$C$1=$B$20),$AK3,\"\"))))","v":"-Select-"},"Carrying","Backup Compressor","Capacitor Banks",{"$f":"IF($C$1=$B$2,$AM$2,IF(OR($C$1=$B$3,$C$1=$B$4,$C$1=$B$5,$C$1=$B$6,$C$1=$B$7,$C$1=$B$8,$C$1=$B$9,$C$1=$B$10,$C$1=$B$11,$C$1=$B$12,$C$1=$B$13,$C$1=$B$14,$C$1=$B$15),$AM3,\"\"))","v":"-Select-"},"Cement","Light Defect","Standard Warranty","Intermittent","YES (please specify below)","YES (please specify below)","Leakage(Oil)","Oil Carry-over"]
[null,"Wheeled Excavator WEX","-Select-","DX140LC-3","DX140W-3","DL200","MT26","DT120","A770","MT55","AL350",3400,"Others (Type here)",328,"T2556","Auger","10/125","IR12PS","G100","BX-60WH","BL2000A","-Select-","Bucket, Narrow","Coupling","-Select-","Demolition machine","Auto Start","Adjustable Earth Leakage Protection","-Select-","Building / Grounds","Chemical Plant","Coast Protection","Event / Concert","-Select-","Concrete Mixing","Blasting (Sand-Dry Ice)","Concrete Mixers","-Select-","Charcoal","Performance Drop","Extended Warranty","Permanent","NO","NO","Leakage(Gas)","Power Decrease"]
[null,"Wheel Loader WL","-Select-","DX140LCR","DX160W","DL200-3","MT31","DT160","S100","Others (Type here)","AL440","3400XL",{"$f":"\" \"","v":" "},425,"T2566","Backhoe","10/370","IR12PV","G110","BX-80WH","BL2000B","-Select-","Bucket, Rock","Dryer","-Select-","Forestry Machine","Chalwyn Valve","Air Shut Off Valve","-Select-","Civil Work","Desert","Dam Construction","Rental","-Select-","Demolition","Drilling","Disk Saws","-Select-","Clay, Dry","Machine Down","Out of Warranty",{"$nulls":3},"Leakage(Water)","Fire"]
[null,"Articulated Dump Truck ADT","-Select-","DX140LCR-3","DX160WRR","DL200TC","MT36","DT210","S130",{"$f":"\" \"","v":" "},"Others (Type here)","Others (Type here)"," ",428,"T35100","Bale Squeeze Handler with Tines","10/455","IR15","G130","BXR-100H","BL2000HMI","-Select-","Bucket, Standard","Engine","-Select-","Long Arm","Cold Start","Auto Start with Timer & Photocell","-Select-","Coast Protection","Drill Rig","Land Development","Stand-by / Back-up","-Select-","Digging / Excavating","Main Compressor","Electrical Drills","-Select-","Clay, Wet","Safety Related",{"$nulls":4},"Rust","Overspeed"]
[null,"Doosan Telescopic Handler DTH","-Select-","DX160HT","DX160W-3","DL200TC-3","MT41","Others (Type here)","S150",{"$f":"\" \"","v":" "}," "," "," ",442,"T35100L","Bale Squeeze Handler with Tubes","12/150","IR15BV","G16","DX-500E","LSV9","-Select-","Bucket, Wide","Filter Package","-Select-","Long Boom","Dual Pressure","Cold Start Package","-Select-","Construction","Nuclear Plant","River, Canal & Irrigation","Others (Type here)","-Select-","Dozing","Pipeline Cleaning / Drying","Fans","-Select-","Coal",{"$nulls":5},"Crack","Others (Type here)"]
[null,"Compact Loader LDR","-Select-","DX160HT-3","DX170W","DL200A","DA30",{"$f":"\" \"","v":" "},"S160"," "," "," "," ",444,"T35100SL","Box Blade","12/235","IR17JS","G150","DX-700E","LT6K","-Select-","Compactor","Others (Type here)","-Select-","Material Handler","Generator","Digital Control Panel","-Select-","Dam Construction","Off-Shore","Road or Railroad Construction",{"$f":"\" \"","v":" "},"-Select-","Handling, Block","Others (Type here)","Heating","-Select-","Coke",{"$nulls":5},"Take off"]
[null,"Mini-Track Loader MT","-Select-","DX160LC","DX170W-3","DL250","DA40",{"$f":"\" \"","v":" "},"S175"," "," "," "," ","319K","T35120","Breaker, Hydraulic","12/56","IR17JV","G160","RX-264H","Others (Type here)","-Select-","Crusher/Pulver",{"$f":"\" \"","v":" "},"-Select-","Standard Machine","IQ System","Heavy Duty Impregnation for alternator","-Select-","Demolition","Petrochemical Plant","Others (Type here)"," ","-Select-","Handling, Log",{"$f":"\" \"","v":" "},"Incandescent Lightning","-Select-","Dolomite",{"$nulls":5},"Noise"]
[null,"Bobcat Articulated Loader BAL","-Select-","DX160LC-3","DX190W","DL250-3","Others (Type here)"," ","S185"," "," "," "," ","321K","T35120L","Brush Saw","14/115","IR20","G20","RX-344H",{"$f":"\" \"","v":" "},"-Select-","Fork"," ","-Select-","Super Long Reach","Low Fuel","Mains Power Supply Connector","-Select-","Forestry","Plant Air",{"$f":"\" \"","v":" "}," ","-Select-","Handling, Material"," ","Metal Halide Lamps","-Select-","Earth, Dry",{"$nulls":5},"Loose"]
[null,"Utility Vehicle UV","-Select-","DX180HT","DX190W-3","DL250TC",{"$f":"\" \"","v":" "}," ","S205"," "," "," "," ","323K","T35120SL","Brushcat Rotary Cutter","14/85","IR20BV","G200","Others (Type here)"," ","-Select-","Forks, Pallet"," ","-Select-","Others (Type here)","Lubricator","Refinery Kit","-Select-","Landscaping","Rental"," "," ","-Select-","Handling, Pallet"," ","Motor Starting","-Select-","Earth, Wet",{"$nulls":5},"Wear"]
[null,"Work Machine WM","-Select-","DX180HT-3","DX190WMH","DL250TC-3"," "," ","S250"," "," "," "," ","DX15","T35120SL MP","Bucket, Clamshell","17/235","IR23JS","G22",{"$f":"\" \"","v":" "}," ","-Select-","Grapple"," ","-Select-",{"$f":"\" \"","v":" "},"Spark Arrestor","Remote Orientation of Lamps","-Select-","Material Handling","Others (Type here)"," "," ","-Select-","Handling, Tire"," ","Office Buildings","-Select-","Gravel",{"$nulls":5},"Deformation"]
[null,"Compact Mini-Excavator MEX","-Select-","DX180LC","DX210W","DL250A"," "," ","S300"," "," "," "," ","DX18","T3571","Bucket, Clay Spade","21/215","IR23JV","G220"," "," ","-Select-","Man Platform"," ","-Select-",{"$f":"\" \"","v":" "},"Water Seperator","Sockets","-Select-","Mining",{"$f":"\" \"","v":" "}," "," ","-Select-","Handling, Waste"," ","Pumps","-Select-","Reinforced Concrete",{"$nulls":5},"Excessive Oil consumption"]
[null,"Compact Telescopic Handler TLS","-Select-","DX180LC-3","DX210WMH","DL300"," "," ","S330"," "," "," "," ","DX27Z","T3571L","Bucket, Combination","25/300","IR25","G250"," "," ","-Select-","Shear"," ","-Select-",{"$f":"\" \"","v":" "},"Others (Type here)","Spark Arrestor","-Select-","Miscellaneous"," "," "," ","-Select-","Leveling"," ","Synchronous Motors","-Select-","Rock Soft",{"$nulls":5},"Defective exterior"]
[null,"Attachment ATT","-Select-","DX225LC","S180W","DL300-3"," "," ","S510"," "," "," "," ","DX30Z","T40140","Bucket, Concrete","25/330","IR25BV","G270"," "," ","-Select-","Sweeper",null,"-Select-",{"$f":"\" \"","v":" "},{"$f":"\" \"","v":" "},"Others (Type here)","-Select-","Personal use",{"$f":"\" \"","v":" "}," "," ","-Select-","Lifting"," ","Tower Cranes","-Select-","Rock, Hard",{"$nulls":5},"Smoke"]
[null,"Compressor COMP","-Select-","DX225LC-3","S180W-V","DL300A"," "," ","S530"," "," "," "," ","DX35Z","T40170","Bucket, Construction","7/120","IR2PS","G30"," "," ","-Select-","Others (Type here)",{"$nulls":5},"-Select-","Quarry"," "," "," ","-Select-","Load & Carry"," ","Others (Type here)","-Select-","Rock, Medium",{"$nulls":5},"Poor working"]
[null,"Air Tools TOOLS","-Select-","DX225LCA","S210W","DL350"," "," ","S550"," "," "," "," ","DX55","TL360","Bucket, Digging & Loading","7/170","IR30","G33"," "," ",{"$nulls":7},"-Select-","Recycling "," "," "," ","-Select-","Loading "," "," ","-Select-","Sand",{"$nulls":5},"Not working"]
[null,"Generator GEN","-Select-","DX225NLC","S210W-V","DL350-3"," "," ","S570"," "," "," "," ","DX55W","TL470","Bucket, Dirt","7/20","IR30BV","G330"," "," ",{"$nulls":7},"-Select-","Rental"," "," "," ","-Select-","Piling"," "," ","-Select-","Limestone",{"$nulls":5},"Overheating"]
[null,"Light Compaction LC","-Select-","DX235LCR","Others (Type here)","DL400"," "," ","S590"," "," "," "," ","DX60R","TL470HF","Bucket, Fertilizer","7/26E","IR3PS","G40"," "," ",{"$nulls":7},"-Select-","River, Canal & Irrigation"," "," "," ","-Select-","Quarry"," "," ","-Select-","Others (Type here)",{"$nulls":5},"Vibration"]
[null,"Light Tower/Balloon Light LT","-Select-","DX235NLC",{"$f":"\" \"","v":" "},"DL420"," "," ","S630"," "," "," "," ","DX80R","TR35160","Bucket, General Purpose","7/31E","IR40","G400"," "," ",{"$nulls":7},"-Select-","Road or Railroad Construction"," "," "," ","-Select-","Recycling"," "," ",{"$nulls":7},"Discoloration"]
[null,"Others (Type here)","-Select-","DX255LC"," ","DL420-3"," "," ","S650"," "," "," "," ","E08","TR38160","Bucket, Grading","7/41","IR40BV","G44"," "," ",{"$nulls":7},"-Select-","Snow Removal"," "," "," ","-Select-","Slope Scraping"," "," ",{"$nulls":7},"Others (Type here)"]
[null,null,"-Select-","DX255LC-3"," ","DL420A"," "," ","S70"," "," "," "," ","E10","TR40250","Bucket, Industrial with Grapple","7/51","IR5JS","G440"," "," ",{"$nulls":7},"-Select-","Trash Disposal"," "," "," ","-Select-","Snow Cleaning"," "," "]
[null,null,"-Select-","DX300DM"," ","DL450"," "," ","S770"," "," "," "," ","E14","TR45190","Bucket, Mixing","7/71","IR5PS","G500"," "," ",{"$nulls":7},"-Select-","Tunnel Construction"," "," "," ","-Select-","Steel Mill"," "," "]
[null,null,"-Select-","DX300LC"," ","DL450-3"," "," ","S850"," "," "," "," ","E16","TR50210","Bucket, Skeleton","9/110","IR9PS","G550"," "," ",{"$nulls":7},"-Select-","Utility"," "," "," ","-Select-","Stumping"," "," "]
[null,null,"-Select-","DX300LC-3"," ","DL500"," "," ","T110"," "," "," "," ","E25","Others (Type here)","Bucket, Spill Guard","9/270","Others (Type here)","G60"," "," ",{"$nulls":7},"-Select-","Others (Type here)"," "," "," ","-Select-","Others (Type here)"," "," "]
[null,null,"-Select-","DX300LCA"," ","DL550-3"," "," ","T140"," "," "," "," ","E26",{"$f":"\" \"","v":" "},"Bucket, Tilt","9/275",{"$f":"\" \"","v":" "},"G66"," "," "]
[null,null,"-Select-","DX340DM"," ","DL550A"," "," ","T180"," "," "," "," ","E32"," ","Clamp, Hydraulic","9/300",{"$f":"\" \"","v":" "},"G77"," "," "]
[null,null,"-Select-","DX340LC"," ","M160"," "," ","T190"," "," "," "," ","E35"," ","Concrete Mixer","9/305"," ","G80"," "," "]
[null,null,"-Select-","DX340LC-3"," ","M160TC"," "," ","T250"," "," "," "," ","E45"," ","Concrete Pump","12/250"," ","Others (Type here)"," "," "]
[null,null,"-Select-","DX340LCA"," ","M160-V"," "," ","T300"," "," "," "," ","E50"," ","Cutter Crusher","17/240"," ",null," "," "]
[null,null,"-Select-","DX380LC"," ","M200-III"," "," ","T320"," "," "," "," ","E55"," ","Digger","21/220"," "," "," "," "]
[null,null,"-Select-","DX380LC-3"," ","M200TC-III"," "," ","T320"," "," "," "," ","E55W"," ","Dozer Blade","C185"," "," "," "," "]
[null,null,"-Select-","DX420DM"," ","M200TC-V"," "," ","T590"," "," "," "," ","E60"," ","Dumping Hopper","HP185CMH"," "," "," "," "]
[null,null,"-Select-","DX420LC"," ","M200-V"," "," ","T650"," "," "," "," ","E80"," ","Flail Cutter","HP200CMH"," "," "," "," "]
[null,null,"-Select-","DX420LC-3"," ","M250-III"," "," ","T770"," "," "," "," ","Others (Type here)"," ","Forestry Cutter","HP375"," "," "," "," "]
[null,null,"-Select-","DX420LCA"," ","M250-V"," "," ","T870"," "," "," "," ",{"$f":"\" \"","v":" "}," ","Fork Utility","HP450"," "," "," "," "]
[null,null,"-Select-","DX480LC"," ","M250-VFL"," "," ","Others (Type here)"," "," "," "," "," "," ","Fork, Bale","HP600CMH"," "," "," "," "]
[null,null,"-Select-","DX480LCA"," ","M250-VTFL"," "," "," "," "," "," "," "," "," ","Fork, Grapple","HP60CMH"," "," "," "," "]
[null,null,"-Select-","DX490LC-3"," ","M300"," "," "," "," "," "," "," "," "," ","Fork, Industrial with Grapple","HP675"," "," "," "," "]
[null,null,"-Select-","DX520LC"," ","M300-III"," "," "," "," "," "," "," "," "," ","Grab, Demolition & Sorting","HP750"," "," "," "," "]
[null,null,"-Select-","DX520LCA"," ","M300-V"," "," "," "," "," "," "," "," "," ","Grab, Multi-Purpose","HP915"," "," "," "," "]
[null,null,"-Select-","DX530LC-3"," ","M300-VTFL"," "," "," "," "," "," "," "," "," ","Grader","MHP825"," "," "," "," "]
[null,null,"-Select-","DX700LC"," ","M400-III Plus"," "," "," "," "," "," "," "," "," ","Grader, Laser Transmitter & Receiver","NHP1500"," "," "," "," "]
[null,null,"-Select-","S225LC-V"," ","M400-V"," "," "," "," "," "," "," "," "," ","Grapple, 3-Tine","P135"," "," "," "," "]
[null,null,"-Select-","S255LC-V"," ","M400VFL"," "," "," "," "," "," "," "," "," ","Hydra-Tilt","P185"," "," "," "," "]
[null,null,"-Select-","S300LC-V"," ","M500-V"," "," "," "," "," "," "," "," "," ","Jib, Crane","P250"," "," "," "," "]
[null,null,"-Select-","S340LC"," ","M500VT"," "," "," "," "," "," "," "," "," ","Jib, Extension","P260"," "," "," "," "]
[null,null,"-Select-","S340LC-V"," ","SD200"," "," "," "," "," "," "," "," "," ","Landplane","P425"," "," "," "," "]
[null,null,"-Select-","S420LC"," ","SD300"," "," "," "," "," "," "," "," "," ","Landscape Rake","P600"," "," "," "," "]
[null,null,"-Select-","S420LC-V"," ","Others (Type here)"," "," "," "," "," "," "," "," "," ","Man Platform","P65"," "," "," "," "]
[null,null,"-Select-","S470LC-V"," "," "," "," "," "," "," "," "," "," "," ","Mixing Bucket","P90"," "," "," "," "]
[null,null,"-Select-","S500LC-V"," "," "," "," "," "," "," "," "," "," "," ","Mower","VHP300CMH"," "," "," "," "]
[null,null,"-Select-","Others (Type here)"," "," "," "," "," "," "," "," "," "," "," ","Packer Wheel","VHP30RMH"," "," "," "," "]
[null,null,"-Select-",null," "," "," "," "," "," "," "," "," "," "," ","Pallet Forks","VHP400"," "," "," "," "]
[null,null,"-Select-",null," "," "," "," "," "," "," "," "," "," "," ","Pallet Forks, Floating","VHP40RMH"," "," "," "," "]
[null,null,"-Select-",null," "," "," "," "," "," "," "," "," "," "," ","Planer","VHP500CMH"," "," "," "," "]
[null,null,"-Select-",null," "," "," "," "," "," "," "," "," "," "," ","Plate Compactor","VHP550CMH"," "," "," "," "]
[null,null,"-Select-",null," "," "," "," "," "," "," "," "," "," "," ","Quick Coupler","VHP750"," "," "," "," "]
[null,null,"-Select-",null," "," "," "," "," "," "," "," "," "," "," ","Ripper Tooth","VHP85CMH"," "," "," "," "]
[null,null,"-Select-",null," "," "," "," "," "," "," "," "," "," "," ","Rotary Grinder","XHP1070"," "," "," "," "]
[null,null,"-Select-",null," "," "," "," "," "," "," "," "," "," "," ","Salt & Sand Spreader","XHP1070CMH"," "," "," "," "]
[null,null,"-Select-",null," "," "," "," "," "," "," "," "," "," "," ","Scarifier","XHP1170"," "," "," "," "]
[null,null,"-Select-",{"$f":"\" \"","v":" "}," "," "," "," "," "," "," "," "," "," "," ","Scraper","XHP1250CMH"," "," "," "," "]
[null,null,"-Select-"," "," "," "," "," "," "," "," "," "," "," "," ","Snow Blade","XHP1450"," "," "," "," "]
[null,null,"-Select-"," "," "," "," "," "," "," "," "," "," "," "," ","Snow Blower","XHP750"," "," "," "," "]
[null,null,"-Select-"," "," "," "," "," "," "," "," "," "," "," "," ","Snow V-Blade","XHP750CMH"," "," "," "," "]
[null,null,{"$f":"IF($C$1=$B$2,$D$2,IF($C$1=$B$3,$D67,IF($C$1=$B$4,$E67,IF($C$1=$B$5,$F67,IF($C$1=$B$6,$G67,IF($C$1=$B$7,$H67,IF($C$1=$B$8,$I67,IF($C$1=$B$9,$J67,IF($C$1=$B$10,$K67,IF($C$1=$B$11,$L67,IF($C$1=$B$12,$M67,IF($C$1=$B$13,$N67,IF($C$1=$B$14,$O67,IF($C$1=$B$15,$P67,IF($C$1=$B$16,$Q67,IF($C$1=$B$17,$R67,IF($C$1=$B$18,$S67,IF($C$1=$B$19,$T67,IF($C$1=$B$20,$U67,IF($C$1=$B$21,$B$21,\"\"))))))))))))))))))))","v":"-Select-"}," "," "," "," "," "," "," "," "," "," "," "," ","Sod Layer","XHP900"," "," "," "," "]
[null,null,"-Select-"," "," "," "," "," "," "," "," "," "," "," "," ","Soil Conditioner","XHP900CMH"," "," "," "," "]
[null,null,"-Select-"," "," "," "," "," "," "," "," "," "," "," "," ","Stump Grinder","XP1000"," "," "," "," "]
[null,null,"-Select-"," "," "," "," "," "," "," "," "," ",{"$f":"\" \"","v":" "}," "," ","Sweeper","XP185"," "," "," "," "]
[null,null,"-Select-"," "," "," "," "," "," "," "," "," "," "," "," ","Tiller","XP375"," "," "," "," "]
[null,null,"-Select-"," "," "," "," "," "," "," "," "," "," "," "," ","Tilt-Rotator","XP650CMH"," "," "," "," "]
[null,null,"-Select-"," "," "," "," "," "," "," "," "," "," "," "," ","Tilt-tach","XP750"," "," "," "," "]
[null,null,"-Select-"," "," "," "," "," "," "," "," "," "," "," "," ","Tree Transplanter","XP825"," "," "," "," "]
[null,null,"-Select-"," "," "," "," "," "," "," "," "," "," "," "," ","Trench Compactor","XXHP1250"," "," "," "," "]
[null,null,"-Select-"," "," "," "," "," "," "," "," "," "," "," "," ","Trencher","Others (Type here)"," "," ",{"$f":"\" \"","v":" "}," "]
[null,null,"-Select-"," "," "," "," "," "," "," "," "," "," "," "," ","Vibratory Roller",{"$f":"\" \"","v":" "}," "," "," "," "]
[null,null,"-Select-"," "," "," "," "," "," "," "," "," "," "," "," ","Water Kit"," "," "," "," "," "]
[null,null,"-Select-"," "," "," "," "," "," "," "," "," "," "," "," ","Wheel Saw"," "," "," "," "," "]
[null,null,"-Select-"," "," "," "," "," "," "," "," "," "," "," "," ","Whisker Broom"," "," "," "," "," "]
[null,null,"-Select-"," "," "," "," "," "," "," "," "," "," "," "," ","Winch",{"$f":"\" \"","v":" "}," "," "," "," "]
[null,null,"-Select-"," "," "," "," "," "," "," "," "," "," "," "," ","Wood Chipper"," "," "," "," "," "]
[null,null,"-Select-"," "," "," "," "," "," "," "," "," "," "," "," ","Others (Type here)"," "," "," "," "," "]

{"sheet":"Dropdown menus (translations)","index":3,"n_rows":299,"n_cols":7,"rows_kept":299}
["ENGLISH (EN)","ITALIAN (IT)","SPANISH (ES)","PORTUGUESE (PT)","FRENCH (FR)","GERMAN (DE)","DUTCH (NL)"]
[]
["-Select-","-Selezionare-","-Seleccione-","- Seleccione - ","-Sélectionnez-","-Auswählen-","-Selecteren-"]
[]
["Product"]
["Heavy Excavator HEX","Escavatore pesante (HEX)","Excavadora pesada HEX","Escavadora gama pesada (HEX)","Pelle lourde HEX","Schwerer Bagger HEX","Zware graafmachine (HEX)"]
["Wheeled Excavator WEX","Escavatore gommato (WEX)","Excavadora de ruedas WEX","Escavadora de rodas (WEX)","Pelle sur roues WEX","Mobilbagger WEX","Mobiele graafmachine (WEX)"]
["Wheel Loader WL","Pala gommata (WL)","Cargadora de ruedas WL","Pá carregadora de rodas (WL)","Chargeuse sur roues WL","Radlader WL","Lader op wielen (WL)"]
["Articulated Dump Truck ADT","Dumper articolato (ADT)","Dúmper articulado ADT","Dumper articulado (ADT)","Tombereau articulé ADT","Knickgelenkter Muldenkipper ADT","Knikdumper (ADT)"]
["Doosan Telescopic Handler DTH","Telescopico Doosan (DTH)","Manipulador telescópico Doosan DTH","Manipulador telescópico Doosan (DTH)","Télescopique Doosan DTH","Doosan Teleskoplader DTH","Doosan verreiker (DTH)"]
["Compact Loader LDR","Pala compatta (LDR)","Cargadora compacta LDR","Pá carregadora compacta (LDR)","Chargeuse compacte LDR","Kompakt- & Raupenlader LDR","Compacte lader (LDR)"]
["Mini-Track Loader MT","Minipala cingolata (MT)","Minicargadora compacta de orugas MT","Mini-carregadora compacta de rastos (MT)","Mini-chargeuse sur chenilles MT","Mini-Raupenlader MT","Mini-rupslader (MT)"]
["Bobcat Articulated Loader BAL","Pala articolata Bobcat (BAL)","Cargadora articulada Bobcat BAL","Pá carregadora articulada Bobcat (BAL)","Chargeuse articulée Bobcat BAL","Bobcat Knicklader BAL","Bobcat gelede lader (BAL)"]
["Utility Vehicle UV","Veicolo utilitario (UV)","Vehículo multiusos UV","Veículo multiusos (UV)","Véhicule utilitaire UV","Nutzfahrzeug UV","Terreinwagen (UV)"]
["Work Machine WM","Macchina da lavoro (WM)","Máquina de trabajo WM","Máquina d etrabalho (WM)","Véhicule utilitaire WM","Arbeitsmaschine WM","Werkmachine (WM)"]
["Compact Mini-Excavator MEX","Miniescavatore compatto (MEX)","Miniexcavadora compacta MEX","Mini-escavadora compacta (MEX)","Mini-pelle compacte MEX","Kompaktbagger MEX","Compacte mini-graafmachine (MEX)"]
["Compact Telescopic Handler TLS","Telescopico compatto (TLS)","Manipulador telescópico compacto TLS","Manipulador telescópico compacto (TLS)","Télescopique compact TLS","Kompakt-Teleskoplader TLS","Compacte verreiker (TLS)"]
["Attachment ATT","Accessorio (ATT)","Implemento ATT","Implemento (ATT)","Accessoire ATT","Anbaugerät ATT","Aanbouwdeel (ATT)"]
["Compressor COMP","Compressore (COMP)","Compresor COMP","Compressor (COMP)","Compresseur COMP","Kompressor COMP","Compressor (COMP)"]
["Air Tools TOOLS","Utensili pneumatici (TOOLS)","Herramientas neumáticas TOOLS","Ferramentas pneumáticas (TOOLS)","Outils pneumatiques TOOLS","Druckluftwerkzeuge TOOLS","Pneumatisch gereedschap (TOOLS)"]
["Generator GEN","Generatore (GEN)","Generador GEN","Gerador (GEN)","Générateur GEN","Generator GEN","Generator (GEN)"]
["Light Compaction LC","Compattazione leggera (LC)","Compactación ligera LC","Eq. Compactação ligeira (LC)","Compactage léger LC","Leichte Verdichtung LC","Lichte verdichtingsmachines (LC)"]
["Light Tower/Balloon Light LT","Torre faro/Pallone illuminante (LT)","Torre y globo de iluminación LT","Torre e balão de iluminação (LT)","Mât d'éclairage/éclairage ballon LT","Lichtmast/Leuchtballon LT","Lichttoren/lichtballon (LT)"]
["Others (Type here)","Altri (inserire qui)","Otros (Escriba aquí)","Outro (p.f. indique qual)","Autres (saisissez ici)","Sonstige (hier eingeben)","Overige (Typ hier)"]
[]
["MODEL for Attachments"]
["Angle Broom","Spazzolone angolabile","Barredora orientable","Escova orientável","Balayeuse orientable","Schwenkbesen","Keerbezem"]
["Auger","Trivella","Ahoyador","Broca","Tarière","Erdbohrer","Grondboor"]
["Backhoe","Retroescavatore","Retroexcavadora","Retroescavadora","Pelle rétro","Anbaubagger","Dieplepel"]
["Bale Squeeze Handler with Tines","Pressa per balle con denti","Manipulador de balas con dientes","Garfos de espigão","Pince à balles à dents","Ballenzange","Grijpsysteem met tanden voor balen"]
["Bale Squeeze Handler with Tubes","Pressa per balle con tubi","Manipulador de balas con tubos","Garfos de varão","Pince à balles tubulaire","Ballengreifer","Grijpsysteem met buizen voor balen"]
["Box Blade","Lama livellatrice","Hoja niveladora","Lâmina niveladora","Lame niveleuse","Planierkasten","Boxblad"]
["Breaker, Hydraulic","Martello idraulico","Martillo hidráulico","Martelo hidráulico","Marteau hydraulique","Hydraulikhammer","Breekhamer, hydraulisch"]
["Brush Saw","Decespugliatore","Segadora","Serra horizontal p/ árvores","Scie à broussaille","Buschsäge","Struikfrees"]
["Brushcat Rotary Cutter","Decespugliatore a lame Brushcat","Desbrozadora de cuchillas Brushcat","Corta-ervas","Débroussailleuse à lames Brushcat","Brushcat Rotationsmäher","Brushcat horizontaal roterende maaier"]
["Bucket, Clamshell","Benna mordente","Cucharón, cuchara bivalva","Balde de maxilas de aperto","Benne preneuse","Zweischalengreifer","Grijpbak"]
["Bucket, Clay Spade","Benna per argilla","Cucharón, pala para arcilla","Balde para argilas","Godet à glaise","Lehmlöffel","Kleispadebak"]
["Bucket, Combination","Benna combinata","Combinación de cucharón","Balde combinado hidráulico","Godet 4 en 1","Vier-in-Eins-Schaufel","\"4-in-1\" bak"]
["Bucket, Concrete","Benna da calcestruzzo","Cucharón para hormigón","Balde para betão","Godet à béton","Betonkübel","Betonbak"]
["Bucket, Construction","Benna da costruzione","Cucharón para construcción","Balde de construção","Godet TP","Bau-/Industrieschaufel","Constructielaadbak"]
["Bucket, Digging & Loading","Benna da scavo e da carico","Cucharón para excavación y carga","Balde de escavação","Godet de fouille et de chargement","Grab-/Ladeschaufel","Graaf-/laadbak"]
["Bucket, Dirt","Benna per detriti","Cucharón para tierra","Balde de terras","Godet de terrassement","Erdschaufel","Vuilnisbak"]
["Bucket, Fertilizer","Benna per fertilizzante","Cucharón para fertilizantes","Balde para fertilizantes","Godet à engrais","Düngerschaufel","Mestbak"]
["Bucket, General Purpose","Benna standard","Cucharón de usos múltiples","Balde Standard","Godet universel","Allzweckschaufel","Universele laadbak"]
["Bucket, Grading","Benna livellatrice","Cucharón de nivelación","Balde nivelador","Godet de nivelage","Räumlöffel","Nivelleerbak"]
["Bucket, Industrial with Grapple","Benna industriale con pinza","Cucharón industrial con grapa","Balde industrial com garras","Grappin industriel à godet","Universalschaufel mit Greifer","Industriële bak met grijper"]
["Bucket, Mixing","Benna betoniera","Cucharón, mezcla","Balde misturador","Godet mélangeur","Mischschaufel","Betonmixer"]
["Bucket, Skeleton","Benna grigliata","Cuchara esqueleto","Balde de rede","Godet à claire-voie","Gitterschaufel","Puinriekbak"]
["Bucket, Spill Guard","Sistema antiperdite per benna","Protección antiderrames de cucharón","Balde anti-derrames","Godet à rehausse anti-débordement","Schaufel-Überlaufschutz","Bak met anti-morsplaat"]
["Bucket, Tilt","Benna orientabile","Inclinación del cucharón","Balde orientável","Godet inclinable","Schwenklöffel","Kantelbak"]
["Clamp, Hydraulic","Pinza idraulica","Mordazas hidráulicas","Pinça hidráulica","Pince hydraulique","Hydraulikklammer","Hydraulische klem"]
["Concrete Mixer","Miscelatore per calcestruzzo","Hormigonera","Misturadora de betão","Bétonnière","Betonmischer","Betonmixer"]
["Concrete Pump","Pompa per calcestruzzo","Bomba de hormigón","Bomba de betão","Pompe à béton","Betonpumpe","Betonpomp"]
["Cutter Crusher","Cesoia idraulica","Cizalla hidráulica","Tesoura hidráulica","Cisaille de démolition","Betonknacker","Sloopschaar"]
["Digger","Lama trapiantatrice","Hoja transplantadora","Abre-valas","Lame transplanteuse","Unterschneidmesser","Ondersnijmes"]
["Dozer Blade","Lama apripista","Hoja dózer","Lâmina / Dozer","Lame de remblayage","Planierschild","Dozerblad"]
["Dumping Hopper","Tramoggia di scarico","Dúmper","Balde de entulhos","Tombereau","Anbaudumper","Dumper"]
["Flail Cutter","Trinciatutto a martelli","Desbrozadora de martillos","Limpa matos","Débroussailleuse à fléaux","Schlegelmäher","Klepelmaaier"]
["Forestry Cutter","Cesoia per silvicoltura","Desbrozadora forestal","Cabeça processadora florestal","Débroussailleuse forestière","Forstmulcher","Bosmaaier"]
["Fork Utility","Forca universale","Horquilla multiuso","Forquilha multiusos","Fourche utilitaire","Universalgabel","Universele vork"]
["Fork, Bale","Forca per balle","Horquilla para balas","Forquilha para fardos","Fourche à balles","Ballenforke","Baalvork"]
["Fork, Grapple","Forca prensile","Horquilla con grapa","Forquilha de garras","Fourches à pince","Gabel mit Greifer","Grijpvork"]
["Fork, Industrial with Grapple","Forca industriale prensile","Cucharón industrial con grapa","Forquilha industrial com garras","Fouche industrielle à pince","Universalgabel mit Greifer","Industriële vork met grijper"]
["Grab, Demolition & Sorting","Pinza demolitrice e selezionatrice","Garra de demolición y clasificación","Garra - crivo","Grappin de démolition et de tri","Abbruch- und Sortiergreifer","Grijpen, slopen en sorteren"]
["Grab, Multi-Purpose","Pinza multiuso","Garra multiusos","Garra multiusos","Grappin universel","Mehrzweckgreifer","Universele grijper"]
["Grader","Livellatrice","Niveladora","Nivelador","Niveleuse","Anbaugrader","Grader"]
["Grader, Laser Transmitter & Receiver","Livellatrice con trasmettitore e ricevitore laser","Niveladora, transmisor y receptor por láser","Nivelador a laser","Niveleuse à émetteur et récepteur laser","Anbaugrader, Lasersender und -empfänger","Grader, Laserzender/-ontvanger"]
["Grapple, 3-Tine","Pinza a tre denti","Grapa de tres dientes","Nivelador de 3 dentes","Grappin à trois dents","Drei-Zinken-Greifer","Drietandsgrijper"]
["Hydra-Tilt","Hydra-Tilt","Hydra-Tilt","Balde rotativo","Hydra-Tilt","Hydra-Tilt","Hydra-Tilt"]
["Jib, Crane","Falcone","Grúa pendular","Gancho","Potence","Kranausleger","Kraanstuk"]
["Jib, Extension","Braccio estendibile","Extensión de péndulo","Gancho de longo alcance","Fléchette","Auslegerverlängerung","Kraanarm"]
["Landplane","Spianatrice","Explanadora","Grade niveladora","Râteau égalisateur","Nivellierrechen","Egalisator"]
["Landscape Rake","Rastrello raccoglipietre","Rastrillo hidráulico","Ancinho de limpeza","Râteau ramasse-pierres","Steinsammelschaufel","Hark met steenopvangbak"]
["Man Platform","Piattaforma portapersone","Plataforma","Cesto","Nacelle","Arbeitsbühne","Werkplatform"]
["Mixing Bucket","Benna betoniera","Cuchara hormigonera","Balde misturador de betão","Godet mélangeur","Mischschaufel","Betonmixer"]
["Mower","Falciatrice","Cortadora de césped","Corta-relva","Tondeuse de finition","Mäher","Maaier"]
["Packer Wheel","Compattatore","Rueda del empaquetador","Cilindro compactador","Roue de compactage","Verdichterrad","Wiel met grondstampers"]
["Pallet Forks","Forca per pallet","Horquillas portapalets","Garfos para paletes","Fourche à palettes","Palettengabeln","Palletvorken"]
["Pallet Forks, Floating","Forca per pallet, flottazione","Horquilla portapalets con flotación","Garfos para paletes","Fourches à palettes flottantes","Palettengabeln, pendelnd","Palletvorken, zwevend"]
["Planer","Fresa","Fresadora","Fresa niveladora","Raboteuse","Kaltfräse","Asfaltfrees"]
["Plate Compactor","Lastra compattatrice","Patín compactador","Placa compactadora","Plaque de compactage","Plattenverdichter","Verdichtingsplaat"]
["Quick Coupler","Innesto rapido","Acoplador rápido","Engate rápido","Raccord rapide","Schnellwechsler","Snelkoppeling"]
["Ripper Tooth","Dente scarificatore","Diente ripper","Ripper","Dent de dérochage","Aufreißzahn","Opbreektand"]
["Rotary Grinder","Mola rotativa","Fresadora giratoria","Fresa giratória","Fraiseuse","Felsfräse","Roterende frees"]
["Salt & Sand Spreader","Distributore di sale e sabbia","Esparcidora de sal y arena","Distribuidor de sal ou areia","Epandeur de sel et de sable","Salz- und Sandstreuer","Zout- en zandstrooibak"]
["Scarifier","Scarificatore","Escarificador","Escarificador","Scarificateur","Aufreißer","Opbreektanden"]
["Scraper","Scraper a disco","Disco decapador","Raspador","Décapeuse","Schaber","Grondschraper"]
["Snow Blade","Lama da neve","Hoja quitanieves","Pá de neve","Lame chasse-neige","Schneeräumschild","Sneeuwblad"]
["Snow Blower","Turbina da neve","Turbina quitanieves","Turbina limpa-neves","Turbine à neige","Schneefräse","Sneeuwfrees"]
["Snow V-Blade","Lama da neve a V","Hoja quitanieves en V","Cunha limpa-neves","Lame de déneigement en V","Schnee-V-Schild","V-sneeuwblad"]
["Sod Layer","Stendiprato","Desenrollador de césped","Desenrolador de relva","Dérouleur de gazon","Rasenausroller","Zodenlegger"]
["Soil Conditioner","Rastrello motorizzato","Nivelador rotativo","Preparador de solos","Râteau motorisé","Kraftrechen","Powerhark"]
["Stump Grinder","Sradicatrice","Descepadora","Trituradora de cepos","Dessoucheuse","Baumstumpffräse","Boomstronkfrees"]
["Sweeper","Spazzolone con benna di raccolta","Barredora","Vassoura","Balayeuse à godet collecteur","Kehrschaufel","Bezem met opvangbak"]
["Tiller","Coltivatore rotativo","Rotocultivador","Rotocultivador","Cultivateur rotatif","Bodenfräse","Tuinfrees"]
["Tilt-Rotator","Tilt-Rotator","Rotor de inclinación","Balde de inclinação","Tilt-Rotator","Tilt-Rotator","Tiltrotator"]
["Tilt-tach","Tilt-Tatch","Tilt-Tach","Tilt-Tach","Tilt-Tatch","Tilt-Tatch","Tilt-Tatch"]
["Tree Transplanter","Trapiantatore d'alberi","Hoja transplantadora","Transplantador de árvores","Transplanteuse d’arbres","Baumverpflanzer","Boomverplanter"]
["Trench Compactor","Ruota compattatrice","Rueda compactadora","Compactador de trincheiras","Compacteur de tranchée","Grabenverdichter","Sleuvenverdichter"]
["Trencher","Scavacanali","Zanjadora","Abre-valas","Trancheuse","Grabenfräse","Sleuvengraver"]
["Vibratory Roller","Rullo vibrante","Rodillo vibratorio","Cilindro compactador vibratório","Rouleau vibrant","Vibrationswalze","Trilwals"]
["Water Kit","Kit acqua","Conjunto de aspersores","Kit de água","Kit d’arrosage","Wassersprühanlage","Waterkit"]
["Wheel Saw","Scavacanali a disco","Disco sierra","Serra de disco","Scie à roche","Radsäge","Sleuvenfrees"]
["Whisker Broom","Spazzatrice","Barredora de cerdas","Escova","Balai pousseur","Kehrbesen","Duwborstel"]
["Winch","Verricello","Cabrestante","Cabrestante","Treuil","Seilwinde","Kabellier"]
["Wood Chipper","Sminuzzatrice","Trituradora de residuos vegetales","Triturador de madeira","Broyeuse de branches","Holzshredder","Houtversnipperaar"]
[]
["Attachment (HEAVY + COMPACT)"]
["Breaker","Martello","Martillo hidráulico","Martelo hidráulico","Marteau hydraulique","Hydraulikhammer","Breekhamer"]
["Bucket, Narrow","Benna stretta","Cucharón estrecho","Balde estreito","Godet étroit","Löffel, schmal","Smalle bak"]
["Bucket, Rock","Benna per roccia","Cucharón para roca","Balde de rocha","Godet à roche","Felslöffel","Rotsbak"]
["Bucket, Standard","Benna standard","Cucharón estándar","Balde Standard","Godet standard","Standardlöffel","Standaard bak"]
["Bucket, Wide","Benna larga","Cucharón ancho","Balde largo","Godet large","Löffel, breit","Brede bak"]
["Compactor","Compattatore","Compactador","Compactador","Compacteur","Verdichter","Trilplaat"]
["Crusher/Pulver","Frantumatore/Polverizzatore","Trituradora/Pulverizador","Triturador","Aplatisseur/pulvérisateur","Brecher/Pulverisierer","Breker"]
["Fork","Forca","Horquilla","Forquilha","Fourche","Gabel","Vork"]
["Grapple","Pinza","Grapa","Garra","Grappin","Greifer","Grijper"]
["Shear","Cesoia","Cizalla","Tesoura","Cisaille","Schere","Schaar"]
["Sweeper","Spazzolone con benna di raccolta","Barredora","Vassoura","Balayeuse à godet collecteur","Kehrschaufel","Bezem met opvangbak"]
[]
["Attachment COMP"]
["Aftercooler","Postrefigeratore","Radiador de salida","Radiador de saída","Echangeur de chaleur","Nachkühler","Nakoeler"]
["Coupling","Accoppiamento","Acoplador","Acoplador","Accouplement","Kupplung","Koppeling"]
["Dryer","Essicatore","Deshumidificador","Desumidificador","Séchoir","Wasserabscheider","Droger"]
["Engine","Motore","Motor","Motor","Moteur","Motor","Motor"]
["Filter Package","Pacchetto filtri","Paquete de filtro","Pacote de filtros","Pack de filtration","Filterpaket","Filterpakket"]
[]
["Options (HEX/WEX)"]
["Cabin Riser","Cabin Riser","Elevador de cabina","Elevador da cabina","Rehausse de cabine","Kabinenanhebung","Cabinekantelaar"]
["Demolition machine","Macchina per demolizione","Máquina de demolición","Máquina para demolição","Machine de démolition","Abbruchmaschine","Sloopmachine"]
["Forestry Machine","Macchina per impieghi forestali","Máquina forestal","Máquina florestal","Machine forestière","Forstmaschine","Bosbouwmachine"]
["Long Arm","Bilanciere lungo","Brazo largo","Braço de longo alcance","Balancier long","Langer Löffelstiel","Lange arm"]
["Long Boom","Braccio lungo","Pluma larga","Lança longo alcance","Flèche longue","Langer Ausleger","Lange giek"]
["Material Handler","Movimentatore di materiali","Manipulador de materiales","Manipulador de materiais","Pelle de manutention","Maschine für den Materialumschlag","Materiaalverwerker"]
["Standard Machine","Macchina standard","Máquina estándar","Máquina Standard","Machine standard","Standardmaschine","Standaard machine"]
["Super Long Reach","Sbraccio super lungo","Alcance superlargo","Super-longo alcance","Grand rayon d'action","Extra lange Reichweite","Extreem groot bereik"]
[]
["Options (COMP)"]
["Aftercooler","Postrefigeratore","Radiador de salida","Aftercooler","Echangeur de chaleur","Nachkühler","Nakoeler"]
["Auto Start","Avviamento automatico","Arranque automático","Arranque automático","Démarrage automatique","Autostart","Automatische start"]
["Chalwyn Valve","Valvola Chalwyn","Válvula Chalwyn","Válvula Chalwyn","Valve Chalwyn","Chalwyn-Ventil","Chalwyn-klep"]
["Cold Start","Avviamento a freddo","Arranque en frío","Arranque a frio","Démarrage à froid","Kaltstart","Koude start"]
["Dual Pressure","Doppia pressione","Doble presión","Pressão dupla","Double pression","Dualdruck","Dubbele druk"]
["Generator","Generatore","Generador","Gerador","Générateur","Generator","Generator"]
["IQ System","IQ System","IQ System","IQ System","Système IQ","IQ-System","IQ System"]
["Low Fuel","Basso livello del carburante","Bajo nivel de carburante","Nivel baixo de combustivel","Niveau de carburant bas","Niedriger Kraftstoffverbrauch","Laag brandstofpeil"]
["Lubricator","Lubrificatore","Lubricante","Lubrificante","Lubrifiant","Öler","Smeerapparaat"]
["Spark Arrestor","Parascintille","Apagachispas","Anti-fagulhas","Pare-étincelles","Funkenfänger","Vonkenvanger"]
["Water Seperator","Separatore d'acqua","Separador de agua","Separador de água","Décanteur d'eau","Wasserabscheider","Waterafscheider"]
[]
["Options (GEN/LT)"]
["3 way Fuel Valve","Valvola carburante a tre vie","Válvula de combustible de 3 vías","Válvula de combustível de 3 vias","Vanne de carburant 3 voies","3-Wege-Kraftstoffventil","3-weg brandstofklep"]
["Adjustable Earth Leakage Protection","Protezione regolabile contro la dispersione verso massa ","Protección ajustable de fuga de tierra","Protecção de terra ajustável","Protection antifuite à la terre réglable","Einstellbarer FI-Schutzschalter","Instelbare aardlekbeveiliging"]
["Air Shut Off Valve","Valvola di chiusura dell'aria","Válvula de corte de aire","Válvula de corte de ar","Vanne d'arrêt d'air","Luftabsperrventil","Luchtafsluiter"]
["Auto Start with Timer & Photocell","Avviamento automatico con timer e fotocellula","Arranque automático con temporizador y célula fotoeléctrica","Arranque automático com temporizador e célula fotoeléctrica","Démarrage automatique avec retardeur & cellule photoélectrique","Autostart mit Timer und Fotozelle","Automatische start met timer en fotocel"]
["Cold Start Package","Gruppo avviamento a freddo","Paquete de arranque en frío","Pacote de arranque a frio","Pack démarrage à froid","Kaltstart-Kit","Koude-startpakket"]
["Digital Control Panel","Quadro strumenti digitale","Panel de control digital","Painel de controlo digital","Panneau de commande numérique","Digitale Bedienkonsole","Digitaal bedieningspaneel"]
["Heavy Duty Impregnation for alternator","Impregnazione per impieghi gravosi per alternatore","Impregnación de gran resistencia para el alternador","Impregnação reforçada do alternador","Imprégnation renforcée pour alternateur","Schwerlast-Imprägnierung für die Lichtmaschine","Impregnatie dynamo voor zware belasting"]
["Mains Power Supply Connector","Connettore alimentazione elettrica esterna","Conector a la red eléctrica de fuente de alimentación","Ligação para a rede eléctrica","Connecteur d'alimentation secteur","Netzstromanschluss","Aansluiting netvoeding"]
["Refinery Kit","Kit raffineria","Kit de refinería","Kit de refinaria","Kit de raffinerie","Raffinations-Kit","Raffinagekit"]
["Remote Orientation of Lamps","Controllo a distanza dell'orientamento delle lampade","Orientación remota de lámparas","Orientação remota das lâmpadas","Orientation des lampes à distance","Ferngesteuerte Lampenausrichtung","Op afstand richten van lampen"]
["Sockets","Prese","Tomas","Tomadas","Douilles","Anschlussbuchsen","Dopsleutels"]
["Spark Arrestor","Parascintille","Apagachispas","Anti-fagulhas","Pare-étincelles","Funkenfänger","Vonkenvanger"]
[]
["Application (HEAVY + COMPACT)"]
["Agricultural","Applicazioni agricole","Agrícola","Agrícola","Agriculture","Landwirtschaft","Landbouw"]
["Building / Grounds","Edifici / Suoli","Edificios/Solares","Edifícios / Solos","TP / sols","Hoch- und Tiefbau","Bouw / Grondwerk"]
["Civil Work","Opere civili","Obra civil","Construção Civil","Travaux de génie civil","Bauarbeiten","Civieltechnische werken"]
["Coast Protection","Difesa delle coste","Protección de costas","Trabalhos de protecção costeira","Protection des côtes","Küstenschutz","Kustbescherming"]
["Construction","Costruzione","Construcción","Construção","Construction","Bausektor","Bouw"]
["Dam Construction","Costruzione di argini","Construcción de presas","Demolição de represas / diques","Construction de barrages","Dammbau","Aanleg van dammen"]
["Demolition","Demolizione","Demolición","Demolição","Démolition","Abbruch","Sloopwerkzaamheden"]
["Forestry","Applicazioni forestali","Bosques","Exploração Florestal","Exploitation forestière","Forstwirtschaft","Bosbouw"]
["Landscaping","Paesaggistica","Paisajismo","Paisagismo","Aménagement paysager","Garten- und Landschaftsbau","Landschapsverzorging"]
["Material Handling","Movimentazione di materiali","Manipulación de materiales","Manipulação de materiais","Manutention de matériaux","Materialumschlag","Materiaalhantering"]
["Mining","Cave e miniere","Minas","Extracção Mineira","Extraction minière","Bergbau","Mijnbouw"]
["Miscellaneous","Varie","Varios","Várias utilizações","Divers","Verschiedenes","Diversen"]
["Personal use","Utilizzo personale","Uso personal","Uso pessoal","Usage personnel","Persönlicher Gebrauch","Privégebruik"]
["Quarry","Cave","Canteras","Pedreiras","Exploitation de carrière","Steinbruch","Steengroeve"]
["Recycling ","Raccolta differenziata ","Reciclaje ","Reciclagem","Recyclage ","Recycling ","Recycling "]
["Rental","Noleggio","Flota de alquiler","Frota de aluguer","Location","Vermietung","Verhuur"]
["River, Canal & Irrigation","Fiumi, canali e irrigazione","Ríos, canales y riego","Rios, Canais e irrigação","Rivières, canaux et irrigation","Fluss, Kanal und Bewässerung","Rivieren, kanalen en irrigatiewerken"]
["Road or Railroad Construction","Costruzioni stradali e ferroviarie","Construcción de carreteras o vías férreas","Construção de estradas e vias férreas","Constructions de routes ou chemins de fer","Straßen- oder Gleisbau","Wegen- of spoorwegenbouw"]
["Snow Removal","Sgombero neve","Retirada de nieve","Remoção de neve","Déneigement","Schneeräumen","Sneeuwruimen"]
["Trash Disposal","Smaltimento rifiuti","Retirada de basura","Remoção de lixos","Elimination des déchets","Müllentsorgung","Afvalverwijdering"]
["Tunnel Construction","Costruzione di gallerie","Construcción de túneles","Construção de túneis","Construction de tunnels","Tunnelbau","Tunnelbouw"]
["Utility","Generali","Servicio público","Serviço Público","Bâtiments et travaux publics","Versorgungsbetriebe","Nutsvoorzieningen"]
[]
["Application COMP"]
["Auto-Start","Avviamento automatico","Arranque automático","Arranque automático","Démarrage automatique","Autostart","Automatische start"]
["Chemical Plant","Impianti chimici","Planta química","Fábrica de produtos químicos","Usine chimique","Chemiewerk","Chemische fabriek"]
["Desert","Deserto","Desierto","Deserto","Désert","Wüste","Woestijngebied"]
["Drill Rig","Impianto di perforazione","Perforadora","Perfuração / Sondagens","Installation de sondage","Bohranlage","Boorinstallatie"]
["Nuclear Plant","Centrale nucleare","Planta nuclear","Central Nuclear","Centrale nucléaire","Atomkraftwerk","Kernreactor"]
["Off-Shore","Off-shore","Alta mar","Utilização marítima","Off-Shore","Off-Shore","Offshore"]
["Petrochemical Plant","Impianto petrolchimico","Planta petroquímica","Instalações Petroquímicas","Usine pétrochimique","Petrochemiewerk","Petrochemische fabriek"]
["Plant Air","Plant Air","Plant Air","Instalações de Ar Comprimido","Réseau d'air comprimé","Luftreinigung","Plant Air"]
["Rental","Noleggio","Flota de alquiler","Frota de aluguer","Location","Vermietung","Verhuur"]
[]
["Application TOOLS/LC"]
["Building Construction","Costruzione di edifici","Construcción de edificios","Construção de edifícios","Construction de bâtiments","Bausektor","Bouw en constructie"]
["Coast Protection","Difesa delle coste","Protección de costas","Trabalhos de protecção costeira","Protection des côtes","Küstenschutz","Kustbescherming"]
["Dam Construction","Costruzione di argini","Construcción de presas","Construção de diques / represas","Construction de barrages","Dammbau","Aanleg van dammen"]
["Land Development","Sviluppo territoriale","Desarrollo urbanístico","Remoção de terras","Aménagement foncier","Landentwicklung","Landinrichting"]
["River, Canal & Irrigation","Fiumi, canali e irrigazione","Ríos, canales y riego","Rios, Canais e irrigação","Rivières, canaux et irrigation","Fluss, Kanal und Bewässerung","Rivieren, kanalen en irrigatiewerken"]
["Road or Railroad Construction","Costruzioni stradali e ferroviarie","Construcción de carreteras o vías férreas","Construção de estradas e vias férreas","Constructions de routes ou chemins de fer","Straßen- oder Gleisbau","Wegen- of spoorwegenbouw"]
[]
["Application GEN"]
["Construction","Costruzione","Construcción","Construção","Construction","Bausektor","Bouw"]
["Event / Concert","Eventi / Concerti","Eventos / Conciertos","Eventos / Concertos","Evénement / concert","Event / Konzert","Evenementen / Concerten"]
["Rental","Noleggio","Flota de alquiler","Frota de Aluguer","Location","Vermietung","Verhuur"]
["Stand-by / Back-up","In attesa / Di riserva","Reserva/ Respaldo","Reserva / Back-up","Permanence / appui technique","Stand-by / Reserve","Stand-by / Back-up"]
[]
["Work type (HEAVY + COMPACT)"]
["Carrying","Trasporto","Transporte","Transportar / Carregar","Transport","Transport","Vervoer"]
["Concrete Mixing","Betonaggio","Hormigonera","Betoneira","Mélange de béton","Betonmischen","Beton mixen"]
["Demolition","Demolizione","Demolición","Demolição","Démolition","Abbruch","Afbraakwerken"]
["Digging / Excavating","Scavo / Escavazione","Excavación","Escavação","Fouille / excavation","Graben / Ausschachten","Graafwerk / Grondverzet"]
["Dozing","Spianamento","Explanación","Nivelamento","Remblayage","Planieren","Schuifwerkzaamheden"]
["Handling, Block","Movimentazione di blocchi","Manipulación de bloques","Manipulação de blocos","Manutention de blocs","Umschlag von Blöcken","Behandeling van blokken"]
["Handling, Log","Movimentazione di tronchi","Manipulación de troncos","Manipulação de troncos","Manutention de grumes","Umschlag von Rundhölzern","Behandeling van hout"]
["Handling, Material","Movimentazione di materiali","Manipulación de materiales","Manipulação de materiais","Manutention de matériaux","Umschlag von Material","Materiaalhantering"]
["Handling, Pallet","Movimentazione di pallet","Manipulación de palets","Manipulação de paletes","Manutention de palettes","Umschlag von Paletten","Palletbehandeling"]
["Handling, Tire","Movimentazione di pneumatici","Manipulación de neumáticos","Manipulação de pneus","Manutention de pneus","Umschlag von Reifen","werken met banden"]
["Handling, Waste","Movimentazione di scarti","Manipulación de residuos","Manipulação de resíduos","Manutention de déchets","Umschlag von Abfällen","Afvalverwerking"]
["Leveling","Livellamento","Nivelación","Nivelamento","Nivelage","Einebnen","Nivelleringswerk"]
["Lifting","Sollevamento","Elevación","Elevação de cargas","Levage","Anheben","Heffen"]
["Load & Carry","Caricamento e trasporto","Carga y transporte","Carga e transporte","Chargement et transport","Beladen und Transportieren","Laden en transporteren"]
["Loading ","Caricamento ","Carga ","Carregar","Chargement ","Beladen ","Laden "]
["Piling","Accatastamento","Apilado","Empilhar","Empilage","Stapeln","Heiwerk"]
["Quarry","Cave","Canteras","Pedreira","Exploitation de carrière","Steinbruch","Steengroeve"]
["Recycling","Raccolta differenziata","Reciclaje","Reciclagem","Recyclage","Recycling","Recycling"]
["Slope Scraping","Eliminazione di dislivelli","Rebaje de pendientes","Raspagem","Raclage de pentes","Hang abtragen","Taludwerk"]
["Snow Cleaning","Rimozione neve","Retirada de nieve","Limpeza de neve","Déneigement","Schneeräumen","Sneeuwruimen"]
["Steel Mill","Acciaierie","Molino de acero","Aplicações siderúrgicas","Aciérie","Stahlwerk","Staalfabriek"]
["Stumping","Sradicamento di ceppi d'albero","Arrancar cepas","Arranque de cepos","Dessouchage","Baumstumpfarbeiten","Stobbeverwijdering"]
[]
["Work type COMP"]
["Backup Compressor","Compressore di riserva","Compresor de reserva","Compressor de reserva","Compresseur de secours","Reservekompressor","Reservecompressor"]
["Blasting (Sand-Dry Ice)","Pulizia ad aria compressa (sabbia-ghiaccio secco)","Limpieza con chorro de arena, hielo seco","Limpeza a jacto de areia / gelo seco","Décapage (glace sèche)","Reinigungsstrahlen (Sand - Trockeneis)","Droogijsstralen"]
["Drilling","Trivellazione","Taladrado","Trabalhos de perfuração","Forage","Bohrarbeiten","Boren"]
["Main Compressor","Compressore principale","Compresor principal","Compressor principal","Compresseur principal","Hauptkompressor","Hoofdcompressor"]
["Pipeline Cleaning / Drying","Pulitura / asciugatura di tubazioni","Limpieza y secado de tuberías","Limpeza e secagem de pipelines / tubagens","Nettoyage / séchage de pipelines","Pipeline - Reinigung/Trocknung","Persleidingen reinigen"]
[]
["Work type GEN"]
["Capacitor Banks","Banchi di condensatori","Bloques del condensador","Baterias de condensadores","Batteries de condensateurs","Kondensatorbänke","Condensatorbanken"]
["Concrete Mixers","Benne betoniere","Hormigoneras","Betoneiras","Bétonnières","Betonmischer","Betonmengers"]
["Disk Saws","Seghe a disco","Sierras de disco","Serras de disco","Scies circulaires","Scheibensägen","Cirkelzagen"]
["Electrical Drills","Trapani elettrici","Taladros eléctricos","Broca eléctrica","Perceuses électriques","Elektrische Bohrer","Elektrische boren"]
["Fans","Ventole","Ventiladores","Ventilação","Ventilateurs","Lüfter","Ventilatoren"]
["Heating","Riscaldamento","Calefacción","Aquecimento","Chauffage","Heizung","Verwarming"]
["Incandescent Lightning","Illuminazione a incandescenza","Iluminación incandescente","Iluminação incandescente","Eclairage incandescent","Glühlicht","Gloeiverlichting"]
["Metal Halide Lamps","Lampade agli alogenuri metallici","Lámparas de haluro metálico","Lâmpadas de halogéneo","Lampes aux halogénures","Metallhalogenidlampen","Metaalhalidelampen"]
["Motor Starting","Accensione motore","Puesta en marcha del motor","Arranque do motor","Démarrage moteur","Motor anlassen","Motor starten"]
["Office Buildings","Edifici amministrativi","Edificios de oficinas","Edifícios de escritórios","Immeubles de bureaux","Bürogebäude","Kantoorgebouwen"]
["Pumps","Pompe","Bombas","Bombas","Pompes","Pumpen","Pompen"]
["Synchronous Motors","Motori sincroni","Motores síncronos","Motores síncronos","Moteurs synchrones","Gleichlaufmotoren","Synchrone motoren"]
["Tower Cranes","Gru a torre","Grúas torre","Guindastes de Torre","Grues à tour","Turmdrehkräne","Torenkranen"]
[]
["Material (HEAVY + COMPACT)"]
["Cement","Cemento","Cemento","Cimento","Ciment","Beton","Cement"]
["Charcoal","Carbonella","Carbón vegetal","Carvão vegetal","Charbon de bois","Holzkohle","Houtskool"]
["Clay, Dry","Argilla secca","Arcilla seca","Argila seca","Argile sèche","Lehm, trocken","Droge klei"]
["Clay, Wet","Argilla umida","Arcilla húmeda","Argila húmida","Argile humide","Lehm, nass","Natte klei"]
["Coal","Carbone","Carbón","Carvão","Charbon","Steinkohle","Steenkool"]
["Coke","Coke","Coque","Coque","Coke","Koks","Cokes"]
["Dolomite","Dolomite","Dolomita","Dolomite","Dolomie","Dolomit","Dolomiet"]
["Earth, Dry","Terra secca","Tierra seca","Terra seca","Terre sèche","Erde, trocken","Droge grond"]
["Earth, Wet","Terra umida","Tierra húmeda","Terra húmida","Terre humide","Erde, nass","Natte grond"]
["Gravel","Ghiaia","Grava","Gravilha","Gravier","Kies","Grind"]
["Reinforced Concrete","Cemento armato","Hormigón armado","Betão armado","Béton armé","Bewehrter Beton","Gewapend beton"]
["Rock Soft","Roccia soffice","Roca blanda","Rocha macia","Roche tendre","Fels, weich","Zacht gesteente"]
["Rock, Hard","Roccia dura","Roca dura","Rocha dura","Roche dure","Fels, hart","Hard gesteente"]
["Rock, Medium","Roccia media","Roca media","Rocha dureza média","Roche moyenne","Fels, mittel","Matig hard gesteente"]
["Sand","Sabbia","Arena","Areia","Sable","Sand","Zand"]
["Limestone","Calcare","Piedra caliza","Pedra calcária","Calcaire","Kalkstein","Kalksteen"]
[]
["Severity"]
["Light Defect","Difetto leggero","Defecto leve","Defeito ligeiro","Eclairage défectueux","Leichter Defekt","Licht defect"]
["Performance Drop","Calo delle prestazioni","Caída del rendimiento","Perda de rendimento","Baisse de performance","Leistungsabfall","Verminderde prestatie"]
["Machine Down","Macchina ferma","Máquina averiada","Máquina imobilizada","Panne de machine","Maschinenausfall","Machine uitgevallen"]
["Safety Related","Problema relativo alla sicurezza","Seguridad relacionada","Problema de segurança","Problème de sécurité","Sicherheitsbezogen","Veiligheidsgerelateerd"]
[]
["Warranty"]
["Standard Warranty","Garanzia standard","Garantía estándar","Garantia Standard","Garantie standard","Standard-Garantie","Standaard garantie"]
["Extended Warranty","Garanzia estesa","Garantía ampliada","Extensão de Garantia","Extension de garantie","Garantieverlängerung","Uitgebreide garantie"]
["Out of Warranty","Garanzia scaduta","Fuera de garantía","Fora de Garantia","Hors garantie","Außerhalb der Garantie","Garantieperiode verlopen"]
[]
["Type of Problem"]
["Intermittent","Intermittente","Intermitente","Intermitente","Intermittent","Zeitweise","Met tussenpozen"]
["Permanent","Permanente","Permanente","Permanente","Permanent","Dauerhaft","Permanent"]
[]
["Error Codes"]
["YES (please specify below)","SÌ (si prega di specificare)","SÍ (especifique abajo)","Sim (p.f. especifique abaixo)","OUI (veuillez préciser ci-dessous)","JA (bitte unten erläutern)","JA (hieronder specificeren)"]
["NO","NO","NO","Não","NON","NEIN","NEE"]
[]
["Diagnostic Software Report File"]
["YES (please specify below)","SÌ (si prega di specificare)","SÍ (especifique abajo)","Sim (p.f. especifique abaixo)","OUI (veuillez préciser ci-dessous)","JA (bitte unten erläutern)","JA (hieronder specificeren)"]
["NO","NO","NO","Não","NON","NEIN","NEE"]

{"sheet":"Pictures","index":4,"n_rows":2,"n_cols":2,"rows_kept":2}
[]
[null,"UNPROTECTED"]